Workbook

Sheet с 7 до 11 лет
A4: ПРИМЕРНОЕ МЕНЮ И ПИЩЕВАЯ ЦЕННОСТЬ
A5: ПРИГОТАВЛИВАЕМЫХ БЛЮД
A6: (2-х недельное)
A7: МБОУ СОШ с.Красная Горка
A8: Директор школы: Нуртдинов С.Р.
A9: от 28 августа 2024 года
A10: Сезон: Осень-зима
A11: Возростная категория: Начальные классы
D12: 1-ая неделя/Понедельник
A13: Прием пищи, наименование блюда | B13: Вес блюда | C13: Пищевые вещества (г) | F13: Энерг. ценность | G13: № рецептуры
C14: Белки | D14: Жиры | E14: Углеводы
A15: 1 | B15: 2 | C15: 3 | D15: 4 | E15: 5 | F15: 6 | G15: 7
A16: Завтрак
A17: Макароны отварные с томатным соусом | B17: 180 | C17: 7.5 | D17: 7.5 | E17: 21 | F17: 210 | G17: КП24030
A18: Какао с молоком | B18: 200 | C18: 3.1 | D18: 4 | E18: 16 | F18: 180 | G18: КП24044
A19: Хлеб пшеничный витаминизированный | B19: 40 | C19: 2.2 | D19: 0.48 | E19: 13 | F19: 94 | G19: 0000065
A20: Сыр порционный | B20: 12 | C20: 2.8 | D20: 3.5 | E20: 0 | F20: 44 | G20: КП24060
A21: Фрукты свеж.(шт.) | B21: 100 | C21: 0.4 | D21: 0.4 | E21: 9.8 | F21: 47 | G21: КП24061
A22: Всего в Завтрак | B22: =SUM(B17:B21) -> 532 | C22: =SUM(C17:C21) -> 16 | D22: 15.88 | E22: 59.8 | F22: 575
A23: Обед
A24: Щи из свежей капусты с картофелем со сметаной | B24: 200 | C24: 1.4 | D24: 3.98 | E24: 20 | F24: 157 | G24: КП24026
A25: Каша гречневая рассыпчатая | B25: 150 | C25: 5.8 | D25: 5.4 | E25: 27 | F25: 180 | G25: КП24049
A26: Котлеты куриные с соусом томатным | B26: 90 | C26: 12 | D26: 8 | E26: 19 | F26: 293 | G26: КП24032
A27: Чай с сахаром | B27: 200 | C27: 0.2 | D27: 0 | E27: 6.5 | F27: 27 | G27: КП24045
A28: Хлеб пшеничный витаминизированный | B28: 35 | C28: 1.93 | D28: 0.42 | E28: 11.38 | F28: 82 | G28: 0000065
A29: Хлеб ржаной витаминизированный | B29: 30 | C29: 2.43 | D29: 4.2 | E29: 11 | F29: 71 | G29: ШК00129
A30: Всего в Обед | B30: =SUM(B24:B29) -> 705 | C30: =SUM(C24:C29) -> 23.76 | D30: 22 | E30: 94.88 | F30: 810
A31: Всего в день | B31: =B22+B30 -> 1237 | C31: =C22+C30 -> 39.76 | D31: 37.88 | E31: 154.68 | F31: 1385
D32: 1-ая неделя/Вторник
A33: Прием пищи, наименование блюда | B33: Вес блюда | C33: Пищевые вещества (г) | F33: Энерг. ценность | G33: № рецептуры
C34: Белки | D34: Жиры | E34: Углеводы
A35: 1 | B35: 2 | C35: 3 | D35: 4 | E35: 5 | F35: 6 | G35: 7
A36: Завтрак
A37: Каша "Дружба" молочная | B37: 170 | C37: 8 | D37: 5.1 | E37: 25 | F37: 240 | G37: КП24048
A38: Сырники из творога с соусом молочным | B38: 90 | C38: 5.4 | D38: 9 | E38: 13.5 | F38: 120 | G38: КП24057
A39: Чай с сахаром | B39: 200 | C39: 0.2 | D39: 0 | E39: 6.5 | F39: 27 | G39: КП24045
A40: Хлеб пшеничный витаминизированный | B40: 40 | C40: 2.2 | D40: 0.48 | E40: 13 | F40: 94 | G40: 0000065
A41: Всего в Завтрак | B41: =SUM(B37:B40) -> 500 | C41: =SUM(C37:C40) -> 15.8 | D41: =SUM(D37:D40) -> 14.58 | E41: =SUM(E37:E40) -> 58 | F41: =SUM(F37:F40) -> 481
A42: Обед
A43: Суп картофельный с вермишелью | B43: 200 | C43: 8 | D43: 4 | E43: 15 | F43: 111 | G43: КП24012
A44: Солянка из сборных овощей | B44: 150 | C44: 1.2 | D44: 0.5 | E44: 5.3 | F44: 108 | G44: КП24064
A45: Котлеты из говядины "Боярские" с соусом томатным | B45: 90 | C45: 9 | D45: 11 | E45: 24 | F45: 231 | G45: КП24040
A46: Компот из смеси сухофруктов | B46: 200 | C46: 0.9 | D46: 0.1 | E46: 21 | F46: 132 | G46: КП24054
A47: Хлеб пшеничный витаминизированный | B47: 35 | C47: 1.93 | D47: 0.42 | E47: 11.38 | F47: 82 | G47: 0000065
A48: Хлеб ржаной витаминизированный | B48: 30 | C48: 2.43 | D48: 4.2 | E48: 11 | F48: 71 | G48: ШК00129
A49: Всего в Обед | B49: =SUM(B43:B48) -> 705 | C49: =SUM(C43:C48) -> 23.46 | D49: =SUM(D43:D48) -> 20.22 | E49: =SUM(E43:E48) -> 87.68 | F49: =SUM(F43:F48) -> 735
A50: Всего в день | B50: =B41+B49 -> 1205 | C50: =C41+C49 -> 39.26 | D50: =D41+D49 -> 34.8 | E50: =E41+E49 -> 145.68 | F50: =F41+F49 -> 1216
D51: 1-ая неделя/Среда
A52: Прием пищи, наименование блюда | B52: Вес блюда | C52: Пищевые вещества (г) | F52: Энерг. ценность | G52: № рецептуры
C53: Белки | D53: Жиры | E53: Углеводы
A54: 1 | B54: 2 | C54: 3 | D54: 4 | E54: 5 | F54: 6 | G54: 7
A55: Завтрак
A56: Каша гречневая рассыпчатая | B56: 170 | C56: 6 | D56: 6.1 | E56: 30.4 | F56: 204 | G56: КП24049
A57: Голубцы ленивые "Детские" под соусом томатным | B57: 90 | C57: 7.6 | D57: 9.32 | E57: 11.72 | F57: 155 | G57: КП24008
A58: Чай с сахаром | B58: 200 | C58: 0.2 | D58: 0 | E58: 6.5 | F58: 27 | G58: КП24045
A59: Хлеб пшеничный витаминизированный | B59: 40 | C59: 2.2 | D59: 0.48 | E59: 11.38 | F59: 94 | G59: 0000065
A60: Всего в Завтрак | B60: =SUM(B56:B59) -> 500 | C60: =SUM(C56:C59) -> 16 | D60: =SUM(D56:D59) -> 15.9 | E60: =SUM(E56:E59) -> 60 | F60: =SUM(F56:F59) -> 480
A61: Обед
A62: Салат из белокачанной капусты | B62: 60 | C62: 1.1 | D62: 1.2 | E62: 4.6 | F62: 33 | G62: КП24063
A63: Рассольник лениградский с крупой перловой со сметаной | B63: 200 | C63: 9 | D63: 10 | E63: 4.6 | F63: 147 | G63: КП24018
A64: Картофель и овощи, тушенные в соусе с куриным фаршем | B64: 190 | C64: 7 | D64: 6 | E64: 29 | F64: 280 | G64: КП24034
A65: Компот яблочный | B65: 200 | C65: 1.6 | D65: 0 | E65: 29 | F65: 111 | G65: КП24055
A66: Хлеб пшеничный витаминизированный | B66: 35 | C66: 1.93 | D66: 0.42 | E66: 11.38 | F66: 82 | G66: 0000065
A67: Хлеб ржаной витаминизированный | B67: 30 | C67: 2.43 | D67: 4.2 | E67: 11 | F67: 71 | G67: ШК00129
A68: Всего в Обед | B68: =SUM(B62:B67) -> 715 | C68: =SUM(C62:C67) -> 23.06 | D68: =SUM(D62:D67) -> 21.82 | E68: =SUM(E62:E67) -> 89.58 | F68: =SUM(F62:F67) -> 724
A69: Всего в день | B69: =B60+B68 -> 1215 | C69: =C60+C68 -> 39.06 | D69: =D60+D68 -> 37.72 | E69: =E60+E68 -> 149.58 | F69: =F60+F68 -> 1204
D70: 1-ая неделя /Четверг
A71: Прием пищи, наименование блюда | B71: Вес блюда | C71: Пищевые вещества (г) | F71: Энерг. ценность | G71: № рецептуры
C72: Белки | D72: Жиры | E72: Углеводы
A73: 1 | B73: 2 | C73: 3 | D73: 4 | E73: 5 | F73: 6 | G73: 7
A74: Завтрак
A75: Плов из говядины | B75: 160 | C75: 10.3 | D75: 11.25 | E75: 28.3 | F75: 350 | G75: КП24050
A76: Чай с сахаром | B76: 200 | C76: 0.2 | D76: 0 | E76: 6.5 | F76: 27 | G76: КП24045
A77: Хлеб пшеничный витаминизированный | B77: 40 | C77: 2.2 | D77: 0.48 | E77: 13 | F77: 94 | G77: 0000065
A78: Йогурт | B78: 100 | C78: 3.3 | D78: 3 | E78: 6.4 | F78: 71 | G78: КП24058
A79: Всего в Завтрак | B79: =SUM(B75:B78) -> 500 | C79: =SUM(C75:C78) -> 16 | D79: =SUM(D75:D78) -> 14.73 | E79: =SUM(E75:E78) -> 54.2 | F79: =SUM(F75:F78) -> 542
A80: Обед
A81: Суп с фасолью на овощном бульоне | B81: 200 | C81: 6 | D81: 6 | E81: 15.4 | F81: 305 | G81: КП24013
A82: Макароны отварные с маслом | B82: 150 | C82: 4 | D82: 6 | E82: 15.2 | F82: 200 | G82: КП24052
A83: Котлеты куриные "Наггетсы" с подливом овощным | B83: 90 | C83: 6 | D83: 7.2 | E83: 15 | F83: 87 | G83: КП24007
A84: Компот из свежих плодов (яблоко,лимон) | B84: 200 | C84: 0.2 | D84: 0.2 | E84: 12 | F84: 50 | G84: КП24056
A85: Хлеб пшеничный витаминизированный | B85: 35 | C85: 1.93 | D85: 0.42 | E85: 11.38 | F85: 82 | G85: 0000065
A86: Хлеб ржаной витаминизированный | B86: 30 | C86: 2.43 | D86: 4.2 | E86: 11 | F86: 71 | G86: ШК00129
A87: Всего в Обед | B87: =SUM(B81:B86) -> 705 | C87: =SUM(C81:C86) -> 20.56 | D87: =SUM(D81:D86) -> 24.02 | E87: =SUM(E81:E86) -> 79.98 | F87: =SUM(F81:F86) -> 795
A88: Всего в день | B88: =B79+B87 -> 1205 | C88: =C79+C87 -> 36.56 | D88: =D79+D87 -> 38.75 | E88: =E79+E87 -> 134.18 | F88: =F79+F87 -> 1337
D89: 1-ая неделя/Пятница
A90: Прием пищи, наименование блюда | B90: Вес блюда | C90: Пищевые вещества (г) | F90: Энерг. ценность | G90: № рецептуры
C91: Белки | D91: Жиры | E91: Углеводы
A92: 1 | B92: 2 | C92: 3 | D92: 4 | E92: 5 | F92: 6 | G92: 7
A93: Завтрак
A94: Картофельное пюре | B94: 170 | C94: 4.5 | D94: 4 | E94: 22 | F94: 180 | G94: КП24051
A95: Биточки рыбные с соусом томатным | B95: 90 | C95: 7.7 | D95: 9.8 | E95: 21 | F95: 183 | G95: КП24033
A96: Чай витаминизированный "Витошка" | B96: 200 | C96: 1 | D96: 0 | E96: 2 | F96: 54 | G96: КП24046
A97: Хлеб пшеничный витаминизированный | B97: 40 | C97: 2.2 | D97: 0.48 | E97: 13 | F97: 94 | G97: 0000065
A98: Всего в Завтрак | B98: =SUM(B94:B97) -> 500 | C98: =SUM(C94:C97) -> 15.4 | D98: =SUM(D94:D97) -> 14.28 | E98: =SUM(E94:E97) -> 58 | F98: =SUM(F94:F97) -> 511
A99: Обед
A100: Суп крестьянский с крупой (пшено) со сметаной | B100: 200 | C100: 4.6 | D100: 3 | E100: 12 | F100: 170 | G100: КП24015
A101: Каша гречневая рассыпчатая | B101: 150 | C101: 5.8 | D101: 5.4 | E101: 27 | F101: 180 | G101: КП24049
A102: Голубцы ленивые "Детские" под соусом томатным | B102: 90 | C102: 7.6 | D102: 9.32 | E102: 11.72 | F102: 155 | G102: КП24008
A103: Компот из смеси сухофруктов | B103: 200 | C103: 0.9 | D103: 0.1 | E103: 21 | F103: 132 | G103: КП24054
A104: Хлеб пшеничный витаминизированный | B104: 35 | C104: 1.93 | D104: 0.42 | E104: 11.38 | F104: 82 | G104: 0000065
A105: Хлеб ржаной витаминизированный | B105: 30 | C105: 2.43 | D105: 4.2 | E105: 11 | F105: 71 | G105: ШК00129
A106: Всего в Обед | B106: =SUM(B100:B105) -> 705 | C106: =SUM(C100:C105) -> 23.26 | D106: =SUM(D100:D105) -> 22.44 | E106: =SUM(E100:E105) -> 94.1 | F106: =SUM(F100:F105) -> 790
A107: Всего в день | B107: =B98+B106 -> 1205 | C107: =C98+C106 -> 38.66 | D107: =D98+D106 -> 36.72 | E107: =E98+E106 -> 152.1 | F107: =F98+F106 -> 1301
D108: 2-ая неделя/Понедельник
A109: Прием пищи, наименование блюда | B109: Вес блюда | C109: Пищевые вещества (г) | F109: Энерг. ценность | G109: № рецептуры
C110: Белки | D110: Жиры | E110: Углеводы
A111: 1 | B111: 2 | C111: 3 | D111: 4 | E111: 5 | F111: 6 | G111: 7
A112: Завтрак
A113: Макароны отварные с маслом | B113: 170 | C113: 4.7 | D113: 6.8 | E113: 16 | F113: 226.7 | G113: КП24052
A114: Котлеты куриные "Наггетсы" с подливом овощным | B114: 90 | C114: 6 | D114: 7.2 | E114: 15 | F114: 87 | G114: КП24007
A115: Какао с молоком | B115: 200 | C115: 3.1 | D115: 4 | E115: 16 | F115: 180 | G115: КП24044
A116: Хлеб пшеничный витаминизированный | B116: 40 | C116: 2.2 | D116: 0.48 | E116: 13 | F116: 94 | G116: 0000065
A117: Всего в Завтрак | B117: =SUM(B113:B116) -> 500 | C117: =SUM(C113:C116) -> 16 | D117: =SUM(D113:D116) -> 18.48 | E117: =SUM(E113:E116) -> 60 | F117: =SUM(F113:F116) -> 587.7
A118: Обед
A119: Щи из свежей капусты с картофелем со сметаной | B119: 200 | C119: 5.4 | D119: 3.98 | E119: 20 | F119: 154 | G119: КП24026
A120: Плов из говядины | B120: 150 | C120: 10 | D120: 11 | E120: 28 | F120: 324 | G120: КП24050
A121: Чай с сахаром | B121: 200 | C121: 0.2 | D121: 0 | E121: 6.5 | F121: 27 | G121: КП24045
A122: Хлеб пшеничный витаминизированный | B122: 35 | C122: 1.93 | D122: 0.42 | E122: 11.38 | F122: 82 | G122: 0000065
A123: Хлеб ржаной витаминизированный | B123: 30 | C123: 2.43 | D123: 4.2 | E123: 11 | F123: 71 | G123: ШК00129
A124: Фрукты свеж.(шт.) | B124: 100 | C124: 0.4 | D124: 0.4 | E124: 9.8 | F124: 47 | G124: КП24061
A125: Всего в Обед | B125: =SUM(B119:B124) -> 715 | C125: =SUM(C119:C124) -> 20.36 | D125: =SUM(D119:D124) -> 20 | E125: =SUM(E119:E124) -> 86.68 | F125: =SUM(F119:F124) -> 705
A126: Всего в день | B126: =B117+B125 -> 1215 | C126: =C117+C125 -> 36.36 | D126: =D117+D125 -> 38.48 | E126: =E117+E125 -> 146.68 | F126: =F117+F125 -> 1292.7
D127: 2-ая неделя/Вторник
A128: Прием пищи, наименование блюда | B128: Вес блюда | C128: Пищевые вещества (г) | F128: Энерг. ценность | G128: № рецептуры
C129: Белки | D129: Жиры | E129: Углеводы
A130: 1 | B130: 2 | C130: 3 | D130: 4 | E130: 5 | F130: 6 | G130: 7
A131: Завтрак
A132: Каша гречневая рассыпчатая | B132: 170 | C132: 6 | D132: 6.12 | E132: 30.4 | F132: 204 | G132: КП24049
A133: Котлеты из говядины "Люля-Кебаб" с соусом томатным | B133: 90 | C133: 7 | D133: 6 | E133: 10.1 | F133: 146 | G133: КП24005
A134: Чай с сахаром | B134: 200 | C134: 0.2 | D134: 0 | E134: 6.5 | F134: 27 | G134: КП24045
A135: Хлеб пшеничный витаминизированный | B135: 40 | C135: 2.2 | D135: 0.48 | E135: 13 | F135: 94 | G135: 0000065
A136: Всего в Завтрак | B136: =SUM(B132:B135) -> 500 | C136: =SUM(C132:C135) -> 15.4 | D136: =SUM(D132:D135) -> 12.6 | E136: =SUM(E132:E135) -> 60 | F136: =SUM(F132:F135) -> 471
A137: Обед
A138: Суп картофельный с вермишелью | B138: 200 | C138: 8 | D138: 2 | E138: 15 | F138: 111 | G138: КП24012
A139: Картофельное пюре | B139: 150 | C139: 3.9 | D139: 3.8 | E139: 12.3 | F139: 149 | G139: КП24051
A140: Биточки рыбные с соусом томатным | B140: 90 | C140: 7.7 | D140: 9.8 | E140: 21 | F140: 183 | G140: КП24033
A141: Компот яблочный | B141: 200 | C141: 1.6 | D141: 0 | E141: 29 | F141: 111 | G141: КП24055
A142: Хлеб пшеничный витаминизированный | B142: 35 | C142: 1.93 | D142: 0.42 | E142: 11.38 | F142: 82 | G142: 0000065
A143: Хлеб ржаной витаминизированный | B143: 30 | C143: 2.43 | D143: 4.2 | E143: 11 | F143: 71 | G143: ШК00129
A144: Всего в Обед | B144: =SUM(B138:B143) -> 705 | C144: =SUM(C138:C143) -> 25.56 | D144: =SUM(D138:D143) -> 20.22 | E144: =SUM(E138:E143) -> 99.68 | F144: =SUM(F138:F143) -> 707
A145: Всего в день | B145: =B136+B144 -> 1205 | C145: =C136+C144 -> 40.96 | D145: =D136+D144 -> 32.82 | E145: =E136+E144 -> 159.68 | F145: =F136+F144 -> 1178
D146: 2-ая неделя/Среда
A147: Прием пищи, наименование блюда | B147: Вес блюда | C147: Пищевые вещества (г) | F147: Энерг. ценность | G147: № рецептуры
C148: Белки | D148: Жиры | E148: Углеводы
A149: 1 | B149: 2 | C149: 3 | D149: 4 | E149: 5 | F149: 6 | G149: 7
A150: Завтрак
A151: Каша рисовая молочная | B151: 170 | C151: 6.6 | D151: 9.2 | E151: 20 | F151: 266 | G151: КП24053
A152: Сырники "Сюрприз" | B152: 90 | C152: 6.9 | D152: 6 | E152: 18 | F152: 110 | G152: КП24006
A153: Чай с лимоном и сахаром | B153: 200 | C153: 0.3 | D153: 0.3 | E153: 1 | F153: 65 | G153: КП24047
A154: Хлеб пшеничный витаминизированный | B154: 40 | C154: 2.2 | D154: 0.48 | E154: 13 | F154: 94 | G154: 0000065
A155: Всего в Завтрак | B155: =SUM(B151:B154) -> 500 | C155: =SUM(C151:C154) -> 16 | D155: =SUM(D151:D154) -> 15.98 | E155: =SUM(E151:E154) -> 52 | F155: =SUM(F151:F154) -> 535
A156: Обед
A157: Свекольник со сметаной | B157: 200 | C157: 5 | D157: 4 | E157: 13 | F157: 105 | G157: КП24020
A158: Макароны отварные с маслом | B158: 150 | C158: 4 | D158: 6 | E158: 15.2 | F158: 200 | G158: КП24052
A159: Голень куриная запеченная с подливом из томатной пасты | B159: 90 | C159: 10 | D159: 11 | E159: 15 | F159: 115 | G159: КП24067
A160: Компот из смеси сухофруктов | B160: 200 | C160: 0.9 | D160: 0.1 | E160: 21 | F160: 132 | G160: КП24054
A161: Хлеб пшеничный витаминизированный | B161: 35 | C161: 1.93 | D161: 0.42 | E161: 11.38 | F161: 82 | G161: 0000065
A162: Хлеб ржаной витаминизированный | B162: 30 | C162: 2.43 | D162: 4.2 | E162: 11 | F162: 71 | G162: ШК00129
A163: Всего в Обед | B163: =SUM(B157:B162) -> 705 | C163: =SUM(C157:C162) -> 24.26 | D163: =SUM(D157:D162) -> 25.72 | E163: =SUM(E157:E162) -> 86.58 | F163: =SUM(F157:F162) -> 705
A164: Всего в день | B164: =B155+B163 -> 1205 | C164: =C155+C163 -> 40.26 | D164: =D155+D163 -> 41.7 | E164: =E155+E163 -> 138.58 | F164: =F155+F163 -> 1240
D165: 2-ая неделя/Четверг
A166: Прием пищи, наименование блюда | B166: Вес блюда | C166: Пищевые вещества (г) | F166: Энерг. ценность | G166: № рецептуры
C167: Белки | D167: Жиры | E167: Углеводы
A168: 1 | B168: 2 | C168: 3 | D168: 4 | E168: 5 | F168: 6 | G168: 7
A169: Завтрак
A170: Борщ со сметаной на курином бульоне | B170: 230 | C170: 9 | D170: 8 | E170: 21 | F170: 103 | G170: КП24029
A171: Какао с молоком | B171: 200 | C171: 3.1 | D171: 4 | E171: 16 | F171: 180 | G171: КП24044
A172: Хлеб пшеничный витаминизированный | B172: 40 | C172: 2.2 | D172: 0.48 | E172: 13 | F172: 94 | G172: 0000065
A173: Кекс для детского питания | B173: 32 | C173: 1 | D173: 1.2 | E173: 9 | F173: 98 | G173: КП24059
A174: Всего в Завтрак | B174: =SUM(B170:B173) -> 502 | C174: =SUM(C170:C173) -> 15.3 | D174: =SUM(D170:D173) -> 13.68 | E174: =SUM(E170:E173) -> 59 | F174: =SUM(F170:F173) -> 475
A175: Обед
A176: Салат из белокачанной капусты | B176: 90 | C176: 1.6 | D176: 1.8 | E176: 6.9 | F176: 49.5 | G176: КП24063
A177: Суп-лапша домашняя | B177: 200 | C177: 2.4 | D177: 4.8 | E177: 11.8 | F177: 95.6 | G177: КП24016
A178: Каша гречневая рассыпчатая с овощами и куриным фаршем | B178: 150 | C178: 11.5 | D178: 10 | E178: 40 | F178: 450 | G178: КП24035
A179: Чай с сахаром | B179: 200 | C179: 0.2 | D179: 0 | E179: 6.5 | F179: 27 | G179: КП24045
A180: Хлеб пшеничный витаминизированный | B180: 35 | C180: 1.93 | D180: 0.42 | E180: 11.38 | F180: 82 | G180: 0000065
A181: Хлеб ржаной витаминизированный | B181: 30 | C181: 2.43 | D181: 4.2 | E181: 11 | F181: 71 | G181: ШК00129
A182: Всего в Обед | B182: =SUM(B176:B181) -> 705 | C182: =SUM(C176:C181) -> 20.06 | D182: =SUM(D176:D181) -> 21.22 | E182: =SUM(E176:E181) -> 87.58 | F182: =SUM(F176:F181) -> 775.1
A183: Всего в день | B183: =B174+B182 -> 1207 | C183: =C174+C182 -> 35.36 | D183: =D174+D182 -> 34.9 | E183: =E174+E182 -> 146.58 | F183: =F174+F182 -> 1250.1
D184: 2-ая неделя/Пятница
A185: Прием пищи, наименование блюда | B185: Вес блюда | C185: Пищевые вещества (г) | F185: Энерг. ценность | G185: № рецептуры
C186: Белки | D186: Жиры | E186: Углеводы
A187: 1 | B187: 2 | C187: 3 | D187: 4 | E187: 5 | F187: 6 | G187: 7
A188: Завтрак
A189: Картофельное пюре | B189: 170 | C189: 4.5 | D189: 4 | E189: 22 | F189: 180 | G189: КП24051
A190: Котлкты из говядины "Боярские" с соусом томатным | B190: 90 | C190: 9 | D190: 11 | E190: 24 | F190: 231 | G190: КП24040
A191: Чай с лимоном и сахаром | B191: 200 | C191: 0.3 | D191: 0.3 | E191: 1 | F191: 65 | G191: КП24047
A192: Хлеб пшеничный витаминизированный | B192: 40 | C192: 2.2 | D192: 0.48 | E192: 13 | F192: 94 | G192: 0000065
A193: Всего в Завтрак | B193: =SUM(B189:B192) -> 500 | C193: =SUM(C189:C192) -> 16 | D193: =SUM(D189:D192) -> 15.78 | E193: =SUM(E189:E192) -> 60 | F193: =SUM(F189:F192) -> 570
A194: Обед
A195: Салат из моркови на растительном масле (морковь,сахар) | B195: 90 | C195: 1 | D195: 4.3 | E195: 9.1 | F195: 52 | G195: КП24062
A196: Суп картофельный с бобовыми и гренками | B196: 200 | C196: 9 | D196: 5 | E196: 16 | F196: 162 | G196: КП24010
A197: Плов из говядины | B197: 150 | C197: 10 | D197: 11 | E197: 28 | F197: 329 | G197: КП24050
A198: Компот из смеси сухофруктов | B198: 200 | C198: 0.9 | D198: 0.1 | E198: 21 | F198: 132 | G198: КП24054
A199: Хлеб пшеничный витаминизированный | B199: 35 | C199: 1.93 | D199: 0.42 | E199: 11.38 | F199: 82 | G199: 0000065
A200: Хлеб ржаной витаминизированный | B200: 30 | C200: 2.43 | D200: 4.2 | E200: 11 | F200: 71 | G200: ШК00129
A201: Всего в Обед | B201: =SUM(B195:B200) -> 705 | C201: =SUM(C195:C200) -> 25.26 | D201: =SUM(D195:D200) -> 25.02 | E201: =SUM(E195:E200) -> 96.48 | F201: =SUM(F195:F200) -> 828
A202: Всего в день | B202: =B193+B201 -> 1205 | C202: =C193+C201 -> 41.26 | D202: =D193+D201 -> 40.8 | E202: =E193+E201 -> 156.48 | F202: =F193+F201 -> 1398
A203: Итого: | C203: =C31+C50+C69+C88+C107+C126+C145+C164+C183+C202 -> 387.5 | D203: =D31+D50+D69+D88+D107+D126+D145+D164+D183+D202 -> 374.57 | E203: =E31+E50+E69+E88+E107+E126+E145+E164+E183+E202 -> 1484.22 | F203: =F31+F50+F69+F88+F107+F126+F145+F164+F183+F202 -> 12801.8

Sheet с 12 и старше
A4: ПРИМЕРНОЕ МЕНЮ И ПИЩЕВАЯ ЦЕННОСТЬ
A5: ПРИГОТАВЛИВАЕМЫХ БЛЮД
A6: (2-х недельное)
A7: ='с 7 до 11 лет'!A7 -> МБОУ СОШ с.Красная Горка
A8: ='с 7 до 11 лет'!A8 -> Директор школы: Нуртдинов С.Р.
A9: ='с 7 до 11 лет'!A9 -> от 28 августа 2024 года
A10: Сезон: Осень-зима
A11: Возростная категория: Старшие классы
D12: 1-ая неделя/Понедельник
A13: Прием пищи, наименование блюда | B13: Вес блюда | C13: Пищевые вещества (г) | F13: Энерг. ценность | G13: № рецептуры
C14: Белки | D14: Жиры | E14: Углеводы
A15: 1 | B15: 2 | C15: 3 | D15: 4 | E15: 5 | F15: 6 | G15: 7
A16: Завтрак
A17: Макароны отварные с томатным соусом | B17: 200 | C17: 9.6 | D17: 11.2 | E17: 37.95 | F17: 291 | G17: КП24030
A18: Какао с молоком | B18: 200 | C18: 3.1 | D18: 4 | E18: 16 | F18: 180 | G18: КП24044
A19: Хлеб пшеничный | B19: 50 | C19: 2.75 | D19: 0.6 | E19: 16.25 | F19: 117 | G19: 0000065
A20: Сыр порционный | B20: 12 | C20: 2.8 | D20: 3.5 | E20: 0 | F20: 44 | G20: КП24060
A21: Фрукты свеж.(шт.) | B21: 100 | C21: 0.4 | D21: 0.4 | E21: 9.8 | F21: 47 | G21: КП24061
A22: Всего в Завтрак | B22: =SUM(B17:B21) -> 562 | C22: =SUM(C17:C21) -> 18.65 | D22: 19.7 | E22: 80 | F22: 679
A23: Обед
A24: Щи из свежей капусты с картофелем со сметаной | B24: 250 | C24: 2 | D24: 5 | E24: 10 | F24: 98 | G24: КП24021
A25: Каша гречневая рассыпчатая | B25: 180 | C25: 6 | D25: 5.4 | E25: 30 | F25: 210 | G25: КП24049
A26: Котлеты куриные с соусом томатным | B26: 100 | C26: 13 | D26: 10 | E26: 25 | F26: 320 | G26: КП24037
A27: Чай с сахаром | B27: 200 | C27: 0.2 | D27: 0 | E27: 6.5 | F27: 27 | G27: КП24045
A28: Хлеб пшеничный | B28: 45 | C28: 2.48 | D28: 0.54 | E28: 14.63 | F28: 105 | G28: 0000065
A29: Хлеб ржаной | B29: 40 | C29: 3.24 | D29: 5.6 | E29: 14.67 | F29: 95 | G29: ШК00129
A30: Всего в Обед | B30: =SUM(B24:B29) -> 815 | C30: =SUM(C24:C29) -> 26.92 | D30: 26.54 | E30: 100.8 | F30: 855
A31: Всего в день | B31: =B22+B30 -> 1377 | C31: =C22+C30 -> 45.57 | D31: 46.24 | E31: 180.8 | F31: 1534
D32: 1-ая неделя/Вторник
A33: Прием пищи, наименование блюда | B33: Вес блюда | C33: Пищевые вещества (г) | F33: Энерг. ценность | G33: № рецептуры
C34: Белки | D34: Жиры | E34: Углеводы
A35: 1 | B35: 2 | C35: 3 | D35: 4 | E35: 5 | F35: 6 | G35: 7
A36: Завтрак
A37: Каша "Дружба" молочная | B37: 210 | C37: 11 | D37: 8.6 | E37: 38 | F37: 240 | G37: КП24048
A38: Сырники из творога с соусом молочным | B38: 90 | C38: 5.4 | D38: 9 | E38: 13.5 | F38: 120 | G38: КП24057
A39: Чай с сахаром | B39: 200 | C39: 0.2 | D39: 0 | E39: 6.5 | F39: 27 | G39: КП24045
A40: Хлеб пшеничный | B40: 50 | C40: 2.75 | D40: 0.6 | E40: 16.25 | F40: 117 | G40: 0000065
A41: Всего в Завтрак | B41: =SUM(B37:B40) -> 550 | C41: =SUM(C37:C40) -> 19.35 | D41: =SUM(D37:D40) -> 18.2 | E41: =SUM(E37:E40) -> 74.25 | F41: =SUM(F37:F40) -> 504
A42: Обед
A43: Суп картофельный с вермишелью | B43: 250 | C43: 9 | D43: 3 | E43: 16 | F43: 114 | G43: КП24012
A44: Солянка из сборных овощей | B44: 180 | C44: 1.2 | D44: 0.5 | E44: 6.7 | F44: 110 | G44: КП24064
A45: Котлеты из говядины "Боярские" с соусом томатным | B45: 100 | C45: 10 | D45: 16 | E45: 28 | F45: 267 | G45: КП24041
A46: Компот из смеси сухофруктов | B46: 200 | C46: 0.9 | D46: 0.1 | E46: 21 | F46: 132 | G46: КП24054
A47: Хлеб пшеничный | B47: 45 | C47: 2.48 | D47: 0.54 | E47: 14.63 | F47: 105 | G47: 0000065
A48: Хлеб ржаной | B48: 40 | C48: 3.24 | D48: 5.6 | E48: 14.67 | F48: 95 | G48: ШК00129
A49: Всего в Обед | B49: =SUM(B43:B48) -> 815 | C49: =SUM(C43:C48) -> 26.82 | D49: 25.74 | E49: 101 | F49: 823
A50: Всего в день | B50: =B41+B49 -> 1365 | C50: =C41+C49 -> 46.17 | D50: 43.94 | E50: 175.25 | F50: 1327
D51: 1-ая неделя/Среда
A52: Прием пищи, наименование блюда | B52: Вес блюда | C52: Пищевые вещества (г) | F52: Энерг. ценность | G52: № рецептуры
C53: Белки | D53: Жиры | E53: Углеводы
A54: 1 | B54: 2 | C54: 3 | D54: 4 | E54: 5 | F54: 6 | G54: 7
A55: Завтрак
A56: Каша гречневая рассыпчатая | B56: 200 | C56: 7 | D56: 7.1 | E56: 32.4 | F56: 254 | G56: КП24049
A57: Голубцы ленивые "Детские" под соусом томатным | B57: 100 | C57: 9 | D57: 11 | E57: 11.72 | F57: 171 | G57: КП24009
A58: Чай с сахаром | B58: 200 | C58: 0.2 | D58: 0 | E58: 6.5 | F58: 27 | G58: КП24045
A59: Хлеб пшеничный | B59: 50 | C59: 2.75 | D59: 0.6 | E59: 16.25 | F59: 117 | G59: 0000065
A60: Всего в Завтрак | B60: =SUM(B56:B59) -> 550 | C60: =SUM(C56:C59) -> 18.95 | D60: =SUM(D56:D59) -> 18.7 | E60: =SUM(E56:E59) -> 66.87 | F60: =SUM(F56:F59) -> 569
A61: Обед
A62: Салат из белокачанной капусты | B62: 100 | C62: 2.1 | D62: 2.2 | E62: 5.6 | F62: 38 | G62: КП24063
A63: Рассольник лениградский с крупой перловой со сметаной | B63: 250 | C63: 10 | D63: 11 | E63: 7 | F63: 189 | G63: КП24022
A64: Картофель и овощи, тушенные в соусе с куриным фаршем | B64: 190 | C64: 7 | D64: 6 | E64: 29 | F64: 280 | G64: КП24034
A65: Компот яблочный | B65: 200 | C65: 1.6 | D65: 0 | E65: 29 | F65: 111 | G65: КП24055
A66: Хлеб пшеничный | B66: 45 | C66: 2.48 | D66: 0.54 | E66: 14.63 | F66: 105 | G66: 0000065
A67: Хлеб ржаной | B67: 40 | C67: 3.24 | D67: 5.6 | E67: 14.67 | F67: 95 | G67: ШК00129
A68: Всего в Обед | B68: =SUM(B62:B67) -> 825 | C68: =SUM(C62:C67) -> 26.42 | D68: 25.34 | E68: 99.9 | F68: 818
A69: Всего в день | B69: =B60+B68 -> 1375 | C69: =C60+C68 -> 45.37 | D69: 44.04 | E69: 166.77 | F69: 1387
D70: 1-ая неделя /Четверг
A71: Прием пищи, наименование блюда | B71: Вес блюда | C71: Пищевые вещества (г) | F71: Энерг. ценность | G71: № рецептуры
C72: Белки | D72: Жиры | E72: Углеводы
A73: 1 | B73: 2 | C73: 3 | D73: 4 | E73: 5 | F73: 6 | G73: 7
A74: Завтрак
A75: Плов из говядины | B75: 200 | C75: 12.9 | D75: 14 | E75: 41 | F75: 339 | G75: КП24050
A76: Чай с сахаром | B76: 200 | C76: 0.2 | D76: 0 | E76: 6.5 | F76: 27 | G76: КП24045
A77: Хлеб пшеничный | B77: 50 | C77: 2.75 | D77: 0.6 | E77: 16.25 | F77: 117 | G77: 0000065
A78: Йогурт | B78: 100 | C78: 3.3 | D78: 3 | E78: 6.4 | F78: 71 | G78: КП24058
A79: Всего в Завтрак | B79: =SUM(B75:B78) -> 550 | C79: =SUM(C75:C78) -> 19.15 | D79: =SUM(D75:D78) -> 17.6 | E79: =SUM(E75:E78) -> 70.15 | F79: =SUM(F75:F78) -> 554
A80: Обед
A81: Суп с фасолью на овощном бульоне | B81: 250 | C81: 8 | D81: 7 | E81: 18 | F81: 335 | G81: КП24013
A82: Макароны отварные с маслом | B82: 180 | C82: 6 | D82: 5.5 | E82: 30 | F82: 227 | G82: КП24052
A83: Котлеты куриные "Наггетсы" с подливом овощным | B83: 100 | C83: 7 | D83: 8 | E83: 18 | F83: 146 | G83: КП24039
A84: Компот из свежих плодов (яблоко,лимон) | B84: 200 | C84: 0.2 | D84: 0.2 | E84: 12 | F84: 50 | G84: КП24056
A85: Хлеб пшеничный | B85: 45 | C85: 2.48 | D85: 0.54 | E85: 14.63 | F85: 105 | G85: 0000065
A86: Хлеб ржаной | B86: 40 | C86: 3.24 | D86: 5.6 | E86: 14.67 | F86: 95 | G86: ШК00129
A87: Всего в Обед | B87: =SUM(B81:B86) -> 815 | C87: =SUM(C81:C86) -> 26.92 | D87: 26.84 | E87: 107.3 | F87: 958
A88: Всего в день | B88: =B79+B87 -> 1365 | C88: =C79+C87 -> 46.07 | D88: 44.44 | E88: 177.45 | F88: 1512
D89: 1-ая неделя/Пятница
A90: Прием пищи, наименование блюда | B90: Вес блюда | C90: Пищевые вещества (г) | F90: Энерг. ценность | G90: № рецептуры
C91: Белки | D91: Жиры | E91: Углеводы
A92: 1 | B92: 2 | C92: 3 | D92: 4 | E92: 5 | F92: 6 | G92: 7
A93: Завтрак
A94: Картофельное пюре | B94: 200 | C94: 5.5 | D94: 4.2 | E94: 24 | F94: 167 | G94: КП24051
A95: Биточки рыбные с соусом томатным | B95: 100 | C95: 8.7 | D95: 12 | E95: 24 | F95: 189 | G95: КП24036
A96: Чай витаминизированный "Витошка" | B96: 200 | C96: 1 | D96: 0 | E96: 2 | F96: 54 | G96: КП24046
A97: Хлеб пшеничный | B97: 50 | C97: 2.75 | D97: 0.6 | E97: 16.25 | F97: 117 | G97: 0000065
A98: Всего в Завтрак | B98: =SUM(B94:B97) -> 550 | C98: =SUM(C94:C97) -> 17.95 | D98: =SUM(D94:D97) -> 16.8 | E98: =SUM(E94:E97) -> 66.25 | F98: =SUM(F94:F97) -> 527
A99: Обед
A100: Суп крестьянский с крупой (пшено) со сметаной | B100: 250 | C100: 5.6 | D100: 4 | E100: 14 | F100: 186 | G100: КП24023
A101: Каша гречневая рассыпчатая | B101: 180 | C101: 5.8 | D101: 5.4 | E101: 27 | F101: 180 | G101: КП24049
A102: Голубцы ленивые "Детские" под соусом томатным | B102: 100 | C102: 8 | D102: 10.3 | E102: 15 | F102: 175 | G102: КП24009
A103: Компот из смеси сухофруктов | B103: 200 | C103: 0.9 | D103: 0.1 | E103: 21 | F103: 132 | G103: КП24054
A104: Хлеб пшеничный | B104: 45 | C104: 2.48 | D104: 0.54 | E104: 14.63 | F104: 105 | G104: 0000065
A105: Хлеб ржаной | B105: 40 | C105: 3.24 | D105: 5.6 | E105: 14.67 | F105: 95 | G105: ШК00129
A106: Всего в Обед | B106: =SUM(B100:B105) -> 815 | C106: =SUM(C100:C105) -> 26.02 | D106: 25.94 | E106: 106.3 | F106: 873
A107: Всего в день | B107: =B98+B106 -> 1365 | C107: =C98+C106 -> 43.97 | D107: 42.74 | E107: 172.55 | F107: 1400
D108: 2-ая неделя/Понедельник
A109: Прием пищи, наименование блюда | B109: Вес блюда | C109: Пищевые вещества (г) | F109: Энерг. ценность | G109: № рецептуры
C110: Белки | D110: Жиры | E110: Углеводы
A111: 1 | B111: 2 | C111: 3 | D111: 4 | E111: 5 | F111: 6 | G111: 7
A112: Завтрак
A113: Макароны отварные с маслом | B113: 200 | C113: 5.7 | D113: 7 | E113: 18 | F113: 234 | G113: КП24052
A114: Котлеты куриные "Наггетсы" с подливом овощным | B114: 100 | C114: 7 | D114: 8 | E114: 18 | F114: 146 | G114: КП24039
A115: Какао с молоком | B115: 200 | C115: 3.1 | D115: 4 | E115: 16 | F115: 180 | G115: КП24044
A116: Хлеб пшеничный | B116: 50 | C116: 2.75 | D116: 0.6 | E116: 16.25 | F116: 117 | G116: 0000065
A117: Всего в Завтрак | B117: =SUM(B113:B116) -> 550 | C117: =SUM(C113:C116) -> 18.55 | D117: =SUM(D113:D116) -> 19.6 | E117: =SUM(E113:E116) -> 68.25 | F117: =SUM(F113:F116) -> 677
A118: Обед
A119: Щи из свежей капусты с картофелем со сметаной | B119: 250 | C119: 7.4 | D119: 4.6 | E119: 30 | F119: 168 | G119: КП24021
A120: Плов из говядины | B120: 180 | C120: 11 | D120: 14 | E120: 35 | F120: 398 | G120: КП24050
A121: Чай с сахаром | B121: 200 | C121: 0.2 | D121: 0 | E121: 6.5 | F121: 27 | G121: КП24045
A122: Хлеб пшеничный | B122: 45 | C122: 2.48 | D122: 0.54 | E122: 14.63 | F122: 105 | G122: 0000065
A123: Хлеб ржаной | B123: 40 | C123: 3.24 | D123: 5.6 | E123: 14.67 | F123: 95 | G123: ШК00129
A124: Фрукты свеж.(шт.) | B124: 100 | C124: 0.4 | D124: 0.4 | E124: 9.8 | F124: 47 | G124: КП24061
A125: Всего в Обед | B125: =SUM(B119:B124) -> 815 | C125: =SUM(C119:C124) -> 24.72 | D125: =SUM(D119:D124) -> 25.14 | E125: =SUM(E119:E124) -> 110.6 | F125: =SUM(F119:F124) -> 840
A126: Всего в день | B126: =B117+B125 -> 1365 | C126: =C117+C125 -> 43.27 | D126: =D117+D125 -> 44.74 | E126: =E117+E125 -> 178.85 | F126: =F117+F125 -> 1517
D127: 2-ая неделя/Вторник
A128: Прием пищи, наименование блюда | B128: Вес блюда | C128: Пищевые вещества (г) | F128: Энерг. ценность | G128: № рецептуры
C129: Белки | D129: Жиры | E129: Углеводы
A130: 1 | B130: 2 | C130: 3 | D130: 4 | E130: 5 | F130: 6 | G130: 7
A131: Завтрак
A132: Каша гречневая рассыпчатая | B132: 200 | C132: 7.7 | D132: 7.6 | E132: 35 | F132: 251 | G132: КП24049
A133: Котлеты из говядины "Люля-Кебаб" с соусом томатным | B133: 100 | C133: 8 | D133: 10 | E133: 11 | F133: 168 | G133: КП24042
A134: Чай с сахаром | B134: 200 | C134: 0.2 | D134: 0 | E134: 6.5 | F134: 27 | G134: КП24045
A135: Хлеб пшеничный | B135: 50 | C135: 2.75 | D135: 0.6 | E135: 16.25 | F135: 117 | G135: 0000065
A136: Всего в Завтрак | B136: =SUM(B132:B135) -> 550 | C136: =SUM(C132:C135) -> 18.65 | D136: =SUM(D132:D135) -> 18.2 | E136: =SUM(E132:E135) -> 68.75 | F136: =SUM(F132:F135) -> 563
A137: Обед
A138: Суп картофельный с вермишелью | B138: 250 | C138: 8 | D138: 4 | E138: 17 | F138: 125 | G138: КП24012
A139: Картофельное пюре | B139: 180 | C139: 3.9 | D139: 4.2 | E139: 12.3 | F139: 176 | G139: КП24051
A140: Биточки рыбные с соусом томатным | B140: 100 | C140: 7.7 | D140: 10 | E140: 24 | F140: 210 | G140: КП24036
A141: Компот яблочный | B141: 200 | C141: 1.6 | D141: 0 | E141: 29 | F141: 111 | G141: КП24055
A142: Хлеб пшеничный | B142: 45 | C142: 2.48 | D142: 0.54 | E142: 14.63 | F142: 105 | G142: 0000065
A143: Хлеб ржаной | B143: 40 | C143: 3.24 | D143: 5.6 | E143: 14.67 | F143: 95 | G143: ШК00129
A144: Всего в Обед | B144: =SUM(B138:B143) -> 815 | C144: =SUM(C138:C143) -> 26.92 | D144: 24.34 | E144: 111.6 | F144: 822
A145: Всего в день | B145: =B136+B144 -> 1365 | C145: =C136+C144 -> 45.57 | D145: 42.54 | E145: 180.35 | F145: 1385
D146: 2-ая неделя/Среда
A147: Прием пищи, наименование блюда | B147: Вес блюда | C147: Пищевые вещества (г) | F147: Энерг. ценность | G147: № рецептуры
C148: Белки | D148: Жиры | E148: Углеводы
A149: 1 | B149: 2 | C149: 3 | D149: 4 | E149: 5 | F149: 6 | G149: 7
A150: Завтрак
A151: Каша рисовая молочная | B151: 210 | C151: 8.3 | D151: 10.4 | E151: 34 | F151: 320 | G151: КП24053
A152: Сырники "Сюрприз" | B152: 90 | C152: 6.9 | D152: 6 | E152: 18 | F152: 110 | G152: КП24006
A153: Чай с лимоном и сахаром | B153: 200 | C153: 0.3 | D153: 0.3 | E153: 1 | F153: 65 | G153: КП24047
A154: Хлеб пшеничный | B154: 50 | C154: 2.75 | D154: 0.6 | E154: 16.25 | F154: 117 | G154: 0000065
A155: Всего в Завтрак | B155: =SUM(B151:B154) -> 550 | C155: =SUM(C151:C154) -> 18.25 | D155: =SUM(D151:D154) -> 17.3 | E155: =SUM(E151:E154) -> 69.25 | F155: =SUM(F151:F154) -> 612
A156: Обед
A157: Свекольник со сметаной | B157: 250 | C157: 5 | D157: 4 | E157: 13 | F157: 105 | G157: КП24020
A158: Макароны отварные с маслом | B158: 180 | C158: 5 | D158: 6 | E158: 28 | F158: 200 | G158: КП24052
A159: Голень куриная запеченная с подливом из томатной пасты | B159: 100 | C159: 10.2 | D159: 10.7 | E159: 15 | F159: 115 | G159: КП24066
A160: Компот из смеси сухофруктов | B160: 200 | C160: 0.9 | D160: 0.1 | E160: 21 | F160: 132 | G160: КП24054
A161: Хлеб пшеничный | B161: 45 | C161: 2.48 | D161: 0.54 | E161: 14.63 | F161: 105 | G161: 0000065
A162: Хлеб ржаной | B162: 40 | C162: 3.24 | D162: 5.6 | E162: 14.67 | F162: 95 | G162: ШК00129
A163: Всего в Обед | B163: =SUM(B157:B162) -> 815 | C163: =SUM(C157:C162) -> 26.82 | D163: 26.94 | E163: 106.3 | F163: 752
A164: Всего в день | B164: =B155+B163 -> 1365 | C164: =C155+C163 -> 45.07 | D164: 44.24 | E164: 175.55 | F164: 1364
D165: 2-ая неделя/Четверг
A166: Прием пищи, наименование блюда | B166: Вес блюда | C166: Пищевые вещества (г) | F166: Энерг. ценность | G166: № рецептуры
C167: Белки | D167: Жиры | E167: Углеводы
A168: 1 | B168: 2 | C168: 3 | D168: 4 | E168: 5 | F168: 6 | G168: 7
A169: Завтрак
A170: Борщ со сметаной на курином бульоне | B170: 280 | C170: 11 | D170: 12 | E170: 30 | F170: 158 | G170: КП24065
A171: Какао с молоком | B171: 200 | C171: 3.1 | D171: 4 | E171: 16 | F171: 180 | G171: КП24044
A172: Хлеб пшеничный | B172: 50 | C172: 2.75 | D172: 0.6 | E172: 16.25 | F172: 117 | G172: 0000065
A173: Кекс для детского питания | B173: 32 | C173: 1 | D173: 1.2 | E173: 9 | F173: 98 | G173: КП24059
A174: Всего в Завтрак | B174: =SUM(B170:B173) -> 562 | C174: =SUM(C170:C173) -> 17.85 | D174: =SUM(D170:D173) -> 17.8 | E174: =SUM(E170:E173) -> 71.25 | F174: =SUM(F170:F173) -> 553
A175: Обед
A176: Салат из белокачанной капусты | B176: 100 | C176: 1.8 | D176: 2.1 | E176: 7.2 | F176: 52 | G176: КП24063
A177: Суп-лапша домашняя | B177: 250 | C177: 4 | D177: 5.8 | E177: 19 | F177: 107 | G177: КП24016
A178: Каша гречневая рассыпчатая с овощами и куриным фаршем | B178: 180 | C178: 11.5 | D178: 10 | E178: 40 | F178: 450 | G178: КП24035
A179: Чай с сахаром | B179: 200 | C179: 0.2 | D179: 0 | E179: 6.5 | F179: 27 | G179: КП24045
A180: Хлеб пшеничный | B180: 45 | C180: 2.48 | D180: 0.54 | E180: 14.63 | F180: 105 | G180: 0000065
A181: Хлеб ржаной | B181: 40 | C181: 3.24 | D181: 5.6 | E181: 14.67 | F181: 95 | G181: ШК00129
A182: Всего в Обед | B182: =SUM(B176:B181) -> 815 | C182: =SUM(C176:C181) -> 23.22 | D182: 24.04 | E182: 102 | F182: 836
A183: Всего в день | B183: =B174+B182 -> 1377 | C183: =C174+C182 -> 41.07 | D183: 41.84 | E183: 173.25 | F183: 1389
D184: 2-ая неделя/Пятница
A185: Прием пищи, наименование блюда | B185: Вес блюда | C185: Пищевые вещества (г) | F185: Энерг. ценность | G185: № рецептуры
C186: Белки | D186: Жиры | E186: Углеводы
A187: 1 | B187: 2 | C187: 3 | D187: 4 | E187: 5 | F187: 6 | G187: 7
A188: Завтрак
A189: Картофельное пюре | B189: 200 | C189: 6 | D189: 5 | E189: 24 | F189: 167 | G189: КП24051
A190: Котлкты из говядины "Боярские" с соусом томатным | B190: 100 | C190: 10 | D190: 14 | E190: 35 | F190: 254 | G190: КП24041
A191: Чай с лимоном и сахаром | B191: 200 | C191: 0.3 | D191: 0.3 | E191: 1 | F191: 65 | G191: КП24047
A192: Хлеб пшеничный | B192: 50 | C192: 2.75 | D192: 0.6 | E192: 16.25 | F192: 117 | G192: 0000065
A193: Всего в Завтрак | B193: =SUM(B189:B192) -> 550 | C193: =SUM(C189:C192) -> 19.05 | D193: =SUM(D189:D192) -> 19.9 | E193: =SUM(E189:E192) -> 76.25 | F193: =SUM(F189:F192) -> 603
A194: Обед
A195: Салат из моркови на растительном масле (морковь,сахар) | B195: 100 | C195: 2 | D195: 4.5 | E195: 10 | F195: 110 | G195: КП24062
A196: Суп картофельный с бобовыми и гренками | B196: 250 | C196: 10 | D196: 5 | E196: 16 | F196: 162 | G196: КП24024
A197: Плов из говядины | B197: 180 | C197: 6.66 | D197: 11.25 | E197: 30 | F197: 281 | G197: КП24050
A198: Компот из смеси сухофруктов | B198: 200 | C198: 0.9 | D198: 0.1 | E198: 21 | F198: 132 | G198: КП24054
A199: Хлеб пшеничный | B199: 45 | C199: 2.48 | D199: 0.54 | E199: 14.63 | F199: 105 | G199: 0000065
A200: Хлеб ржаной | B200: 40 | C200: 3.24 | D200: 5.6 | E200: 14.67 | F200: 95 | G200: ШК00129
A201: Всего в Обед | B201: =SUM(B195:B200) -> 815 | C201: =SUM(C195:C200) -> 25.28 | D201: 26.99 | E201: 106.3 | F201: 885
A202: Всего в день | B202: =B193+B201 -> 1365 | C202: =C193+C201 -> 44.33 | D202: 46.89 | E202: 182.55 | F202: 1488
A203: Итого: | C203: =C31+C50+C69+C88+C107+C126+C145+C164+C183+C202 -> 446.46 | D203: =D31+D50+D69+D88+D107+D126+D145+D164+D183+D202 -> 441.65 | E203: =E31+E50+E69+E88+E107+E126+E145+E164+E183+E202 -> 1763.37 | F203: =F31+F50+F69+F88+F107+F126+F145+F164+F183+F202 -> 14303

Sheet с 7 до 11 лет 2 смена
A4: ПРИМЕРНОЕ МЕНЮ И ПИЩЕВАЯ ЦЕННОСТЬ
A5: ПРИГОТАВЛИВАЕМЫХ БЛЮД
A6: (2-х недельное)
A7: ='с 7 до 11 лет'!A7 -> МБОУ СОШ с.Красная Горка
A8: ='с 7 до 11 лет'!A8 -> Директор школы: Нуртдинов С.Р.
A9: ='с 7 до 11 лет'!A9 -> от 28 августа 2024 года
A10: Сезон: Осень-зима
A11: Возростная категория: Начальные классы
D12: 1-ая неделя/Понедельник
A13: Прием пищи, наименование блюда | B13: Вес блюда | C13: Пищевые вещества (г) | F13: Энерг. ценность | G13: № рецептуры
C14: Белки | D14: Жиры | E14: Углеводы
A15: 1 | B15: 2 | C15: 3 | D15: 4 | E15: 5 | F15: 6 | G15: 7
A16: Обед 2 смена
A17: Щи из свежей капусты с картофелем со сметаной | B17: 200 | C17: 1.4 | D17: 3.98 | E17: 20 | F17: 154 | G17: КП24026
A18: Каша гречневая рассыпчатая | B18: 150 | C18: 5.8 | D18: 5.4 | E18: 27 | F18: 180 | G18: КП24049
A19: Котлеты куриные с соусом томатным | B19: 90 | C19: 12 | D19: 8 | E19: 19 | F19: 293 | G19: КП24032
A20: Чай с сахаром | B20: 200 | C20: 0.2 | D20: 0 | E20: 6.5 | F20: 27 | G20: КП24045
A21: Хлеб пшеничный витаминизированный | B21: 35 | C21: 1.93 | D21: 0.42 | E21: 11.38 | F21: 82 | G21: 0000065
A22: Хлеб ржаной витаминизированный | B22: 30 | C22: 2.43 | D22: 4.2 | E22: 11 | F22: 71 | G22: ШК00129
A23: Всего в Обед 2 | B23: =SUM(B17:B22) -> 705 | C23: =SUM(C17:C22) -> 23.76 | D23: 22 | E23: 94.88 | F23: 807
A24: Полдник 2 смена
A25: Макароны отварные с томатным соусом | B25: 180 | C25: 7.5 | D25: 7.5 | E25: 21 | F25: 210 | G25: КП24030
A26: Какао с молоком | B26: 200 | C26: 3.1 | D26: 4 | E26: 16 | F26: 180 | G26: КП24044
A27: Хлеб пшеничный витаминизированный | B27: 40 | C27: 2.2 | D27: 0.48 | E27: 13 | F27: 94 | G27: 0000065
A28: Сыр порционный | B28: 12 | C28: 2.8 | D28: 3.5 | E28: 0 | F28: 44 | G28: КП24060
A29: Фрукты свеж.(шт.) | B29: 100 | C29: 0.4 | D29: 0.4 | E29: 9.8 | F29: 47 | G29: КП24061
A30: Всего в Полдник 2 | B30: =SUM(B25:B29) -> 532 | C30: =SUM(C25:C29) -> 16 | D30: 15.88 | E30: 59.8 | F30: 575
A31: Всего в день | B31: =B23+B30 -> 1237 | C31: =C23+C30 -> 39.76 | D31: 37.88 | E31: 154.68 | F31: 1382
D32: 1-ая неделя/Вторник
A33: Прием пищи, наименование блюда | B33: Вес блюда | C33: Пищевые вещества (г) | F33: Энерг. ценность | G33: № рецептуры
C34: Белки | D34: Жиры | E34: Углеводы
A35: 1 | B35: 2 | C35: 3 | D35: 4 | E35: 5 | F35: 6 | G35: 7
A36: Обед 2 смена
A37: Суп картофельный с вермишелью | B37: 200 | C37: 8 | D37: 4 | E37: 15 | F37: 111 | G37: КП24012
A38: Солянка из сборных овощей | B38: 150 | C38: 1.2 | D38: 11 | E38: 5.3 | F38: 108 | G38: КП24064
A39: Котлеты из говядины "Боярские" с соусом томатным | B39: 90 | C39: 9 | D39: 14 | E39: 24 | F39: 231 | G39: КП24040
A40: Компот из смеси сухофруктов | B40: 200 | C40: 0.9 | D40: 0.1 | E40: 21 | F40: 132 | G40: КП24054
A41: Хлеб пшеничный витаминизированный | B41: 35 | C41: 1.93 | D41: 0.42 | E41: 11.38 | F41: 82 | G41: 0000065
A42: Хлеб ржаной витаминизированный | B42: 30 | C42: 2.43 | D42: 4.2 | E42: 11 | F42: 71 | G42: ШК00129
A43: Всего в Обед 2 | B43: =SUM(B37:B42) -> 705 | C43: =SUM(C37:C42) -> 23.46 | D43: 33.72 | E43: 87.68 | F43: 735
A44: Полдник 2 смена
A45: Каша "Дружба" молочная | B45: 170 | C45: 8 | D45: 5.1 | E45: 25 | F45: 240 | G45: КП24048
A46: Сырники из творога с соусом молочным | B46: 90 | C46: 5.4 | D46: 9 | E46: 13.5 | F46: 120 | G46: КП24057
A47: Чай с сахаром | B47: 200 | C47: 0.2 | D47: 0 | E47: 6.5 | F47: 27 | G47: КП24045
A48: Хлеб пшеничный витаминизированный | B48: 40 | C48: 2.2 | D48: 0.48 | E48: 13 | F48: 94 | G48: 0000065
A49: Всего в Полдник 2 | B49: =SUM(B45:B48) -> 500 | C49: =SUM(C45:C48) -> 15.8 | D49: =SUM(D45:D48) -> 14.58 | E49: =SUM(E45:E48) -> 58 | F49: =SUM(F45:F48) -> 481
A50: Всего в день | B50: =B43+B49 -> 1205 | C50: =C43+C49 -> 39.26 | D50: 48.3 | E50: 145.68 | F50: 1216
D51: 1-ая неделя/Среда
A52: Прием пищи, наименование блюда | B52: Вес блюда | C52: Пищевые вещества (г) | F52: Энерг. ценность | G52: № рецептуры
C53: Белки | D53: Жиры | E53: Углеводы
A54: 1 | B54: 2 | C54: 3 | D54: 4 | E54: 5 | F54: 6 | G54: 7
A55: Обед 2 смена
A56: Салат из белокачанной капусты | B56: 60 | C56: 1.1 | D56: 1.2 | E56: 4.6 | F56: 33 | G56: КП24063
A57: Рассольник лениградский с крупой перловой со сметаной | B57: 200 | C57: 9 | D57: 10 | E57: 4.6 | F57: 147 | G57: КП24018
A58: Картофель и овощи, тушенные в соусе с куриным фаршем | B58: 190 | C58: 7 | D58: 6 | E58: 29 | F58: 280 | G58: КП24034
A59: Компот яблочный | B59: 200 | C59: 1.6 | D59: 0 | E59: 29 | F59: 111 | G59: КП24055
A60: Хлеб пшеничный витаминизированный | B60: 35 | C60: 1.93 | D60: 0.42 | E60: 11.38 | F60: 82 | G60: 0000065
A61: Хлеб ржаной витаминизированный | B61: 30 | C61: 2.43 | D61: 4.2 | E61: 11 | F61: 71 | G61: ШК00129
A62: Всего в Обед 2 | B62: =SUM(B56:B61) -> 715 | C62: =SUM(C56:C61) -> 23.06 | D62: 21.82 | E62: 89.58 | F62: 724
A63: Полдник 2 смена
A64: Каша гречневая рассыпчатая | B64: 170 | C64: 6 | D64: 6.1 | E64: 30.4 | F64: 204 | G64: КП24049
A65: Голубцы ленивые "Детские" под соусом томатным | B65: 90 | C65: 7.6 | D65: 9.32 | E65: 11.72 | F65: 155 | G65: КП24008
A66: Чай с сахаром | B66: 200 | C66: 0.2 | D66: 0 | E66: 6.5 | F66: 27 | G66: КП24045
A67: Хлеб пшеничный витаминизированный | B67: 40 | C67: 2.2 | D67: 0.48 | E67: 11.38 | F67: 94 | G67: 0000065
A68: Всего в Полдник 2 | B68: =SUM(B64:B67) -> 500 | C68: =SUM(C64:C67) -> 16 | D68: =SUM(D64:D67) -> 15.9 | E68: =SUM(E64:E67) -> 60 | F68: =SUM(F64:F67) -> 480
A69: Всего в день | B69: =B62+B68 -> 1215 | C69: =C62+C68 -> 39.06 | D69: 37.72 | E69: 149.58 | F69: 1204
D70: 1-ая неделя /Четверг
A71: Прием пищи, наименование блюда | B71: Вес блюда | C71: Пищевые вещества (г) | F71: Энерг. ценность | G71: № рецептуры
C72: Белки | D72: Жиры | E72: Углеводы
A73: 1 | B73: 2 | C73: 3 | D73: 4 | E73: 5 | F73: 6 | G73: 7
A74: Обед 2 смена
A75: Суп с фасолью на овощном бульоне | B75: 200 | C75: 6 | D75: 6 | E75: 15.4 | F75: 305 | G75: КП24013
A76: Макароны отварные с маслом | B76: 150 | C76: 4 | D76: 6 | E76: 15.2 | F76: 200 | G76: КП24052
A77: Котлеты куриные "Наггетсы" с подливом овощным | B77: 90 | C77: 6 | D77: 7.2 | E77: 15 | F77: 120 | G77: КП24007
A78: Компот из свежих плодов (яблоко,лимон) | B78: 200 | C78: 0.2 | D78: 0.2 | E78: 12 | F78: 50 | G78: КП24056
A79: Хлеб пшеничный витаминизированный | B79: 35 | C79: 1.93 | D79: 0.42 | E79: 11.38 | F79: 82 | G79: 0000065
A80: Хлеб ржаной витаминизированный | B80: 30 | C80: 2.43 | D80: 4.2 | E80: 11 | F80: 71 | G80: ШК00129
A81: Всего в Обед 2 | B81: =SUM(B75:B80) -> 705 | C81: =SUM(C75:C80) -> 20.56 | D81: 24.02 | E81: 79.98 | F81: 828
A82: Полдник 2 смена
A83: Плов из говядины | B83: 160 | C83: 10.3 | D83: 11.25 | E83: 28.3 | F83: 350 | G83: КП24050
A84: Чай с сахаром | B84: 200 | C84: 0.2 | D84: 0 | E84: 6.5 | F84: 27 | G84: КП24045
A85: Хлеб пшеничный витаминизированный | B85: 40 | C85: 2.2 | D85: 0.48 | E85: 13 | F85: 94 | G85: 0000065
A86: Йогурт | B86: 100 | C86: 3.3 | D86: 3 | E86: 6.4 | F86: 71 | G86: КП24058
A87: Всего в Полдник 2 | B87: =SUM(B83:B86) -> 500 | C87: =SUM(C83:C86) -> 16 | D87: =SUM(D83:D86) -> 14.73 | E87: =SUM(E83:E86) -> 54.2 | F87: =SUM(F83:F86) -> 542
A88: Всего в день | B88: =B81+B87 -> 1205 | C88: =C81+C87 -> 36.56 | D88: 38.75 | E88: 134.18 | F88: 1370
D89: 1-ая неделя/Пятница
A90: Прием пищи, наименование блюда | B90: Вес блюда | C90: Пищевые вещества (г) | F90: Энерг. ценность | G90: № рецептуры
C91: Белки | D91: Жиры | E91: Углеводы
A92: 1 | B92: 2 | C92: 3 | D92: 4 | E92: 5 | F92: 6 | G92: 7
A93: Обед 2 смена
A94: Суп крестьянский с крупой (пшено) со сметаной | B94: 200 | C94: 4.6 | D94: 3 | E94: 12 | F94: 170 | G94: КП24015
A95: Каша гречневая рассыпчатая | B95: 150 | C95: 5.8 | D95: 5.4 | E95: 27 | F95: 180 | G95: КП24049
A96: Голубцы ленивые "Детские" под соусом томатным | B96: 90 | C96: 7.6 | D96: 9.32 | E96: 11.72 | F96: 155 | G96: КП24008
A97: Компот из смеси сухофруктов | B97: 200 | C97: 0.9 | D97: 0.1 | E97: 21 | F97: 132 | G97: КП24054
A98: Хлеб пшеничный витаминизированный | B98: 35 | C98: 1.93 | D98: 0.42 | E98: 11.38 | F98: 82 | G98: 0000065
A99: Хлеб ржаной витаминизированный | B99: 30 | C99: 2.43 | D99: 4.2 | E99: 11 | F99: 71 | G99: ШК00129
A100: Всего в Обед 2 | B100: =SUM(B94:B99) -> 705 | C100: =SUM(C94:C99) -> 23.26 | D100: 22.44 | E100: 94.1 | F100: 790
A101: Полдник 2 смена
A102: Картофельное пюре | B102: 170 | C102: 4.5 | D102: 4 | E102: 22 | F102: 180 | G102: КП24051
A103: Биточки рыбные с соусом томатным | B103: 90 | C103: 7.7 | D103: 9.8 | E103: 21 | F103: 183 | G103: КП24033
A104: Чай витаминизированный "Витошка" | B104: 200 | C104: 1 | D104: 0 | E104: 2 | F104: 54 | G104: КП24046
A105: Хлеб пшеничный витаминизированный | B105: 40 | C105: 2.2 | D105: 0.48 | E105: 13 | F105: 94 | G105: 0000065
A106: Всего в Полдник 2 | B106: =SUM(B102:B105) -> 500 | C106: =SUM(C102:C105) -> 15.4 | D106: =SUM(D102:D105) -> 14.28 | E106: =SUM(E102:E105) -> 58 | F106: =SUM(F102:F105) -> 511
A107: Всего в день | B107: =B100+B106 -> 1205 | C107: =C100+C106 -> 38.66 | D107: 36.72 | E107: 152.1 | F107: 1301
D108: 2-ая неделя/Понедельник
A109: Прием пищи, наименование блюда | B109: Вес блюда | C109: Пищевые вещества (г) | F109: Энерг. ценность | G109: № рецептуры
C110: Белки | D110: Жиры | E110: Углеводы
A111: 1 | B111: 2 | C111: 3 | D111: 4 | E111: 5 | F111: 6 | G111: 7
A112: Обед 2 смена
A113: Щи из свежей капусты с картофелем со сметаной | B113: 200 | C113: 5.4 | D113: 3.98 | E113: 20 | F113: 154 | G113: КП24026
A114: Плов из говядины | B114: 150 | C114: 10 | D114: 11 | E114: 28 | F114: 324 | G114: КП24050
A115: Чай с сахаром | B115: 200 | C115: 0.2 | D115: 0 | E115: 6.5 | F115: 27 | G115: КП24045
A116: Хлеб пшеничный витаминизированный | B116: 35 | C116: 1.93 | D116: 0.42 | E116: 11.38 | F116: 82 | G116: 0000065
A117: Хлеб ржаной витаминизированный | B117: 30 | C117: 2.43 | D117: 4.2 | E117: 11 | F117: 71 | G117: ШК00129
A118: Фрукты свеж.(шт.) | B118: 100 | C118: 0.4 | D118: 0.4 | E118: 9.8 | F118: 47 | G118: КП24061
A119: Всего в Обед 2 | B119: =SUM(B113:B118) -> 715 | C119: =SUM(C113:C118) -> 20.36 | D119: =SUM(D113:D118) -> 20 | E119: =SUM(E113:E118) -> 86.68 | F119: =SUM(F113:F118) -> 705
A120: Полдник 2 смена
A121: Макароны отварные с маслом | B121: 170 | C121: 4.7 | D121: 6.8 | E121: 16 | F121: 226.7 | G121: КП24052
A122: Котлеты куриные "Наггетсы" с подливом овощным | B122: 90 | C122: 6 | D122: 7.2 | E122: 15 | F122: 87 | G122: КП24007
A123: Какао с молоком | B123: 200 | C123: 3.1 | D123: 4 | E123: 16 | F123: 180 | G123: КП24044
A124: Хлеб пшеничный витаминизированный | B124: 40 | C124: 2.2 | D124: 0.48 | E124: 13 | F124: 94 | G124: 0000065
A125: Всего в Полдник 2 | B125: =SUM(B121:B124) -> 500 | C125: =SUM(C121:C124) -> 16 | D125: =SUM(D121:D124) -> 18.48 | E125: =SUM(E121:E124) -> 60 | F125: =SUM(F121:F124) -> 587.7
A126: Всего в день | B126: =B119+B125 -> 1215 | C126: =C119+C125 -> 36.36 | D126: 38.48 | E126: 146.68 | F126: 1292.7
D127: 2-ая неделя/Вторник
A128: Прием пищи, наименование блюда | B128: Вес блюда | C128: Пищевые вещества (г) | F128: Энерг. ценность | G128: № рецептуры
C129: Белки | D129: Жиры | E129: Углеводы
A130: 1 | B130: 2 | C130: 3 | D130: 4 | E130: 5 | F130: 6 | G130: 7
A131: Обед 2 смена
A132: Суп картофельный с вермишелью | B132: 200 | C132: 8 | D132: 4 | E132: 15 | F132: 111 | G132: КП24012
A133: Картофельное пюре | B133: 150 | C133: 3.9 | D133: 3.8 | E133: 12.3 | F133: 149 | G133: КП24051
A134: Биточки рыбные с соусом томатным | B134: 90 | C134: 7.7 | D134: 9.8 | E134: 21 | F134: 183 | G134: КП24033
A135: Компот яблочный | B135: 200 | C135: 1.6 | D135: 0 | E135: 29 | F135: 111 | G135: КП24055
A136: Хлеб пшеничный витаминизированный | B136: 35 | C136: 1.93 | D136: 0.42 | E136: 11.38 | F136: 82 | G136: 0000065
A137: Хлеб ржаной витаминизированный | B137: 30 | C137: 2.43 | D137: 4.2 | E137: 11 | F137: 71 | G137: ШК00129
A138: Всего в Обед 2 | B138: =SUM(B132:B137) -> 705 | C138: =SUM(C132:C137) -> 25.56 | D138: 22.22 | E138: 99.68 | F138: 707
A139: Полдник 2 смена
A140: Каша гречневая рассыпчатая | B140: 170 | C140: 6.6 | D140: 6.12 | E140: 30.4 | F140: 204 | G140: КП24049
A141: Котлеты из говядины "Люля-Кебаб" с соусом томатным | B141: 90 | C141: 7 | D141: 6 | E141: 10.1 | F141: 146 | G141: КП24005
A142: Чай с сахаром | B142: 200 | C142: 0.2 | D142: 0 | E142: 6.5 | F142: 27 | G142: КП24045
A143: Хлеб пшеничный витаминизированный | B143: 40 | C143: 2.2 | D143: 0.48 | E143: 13 | F143: 94 | G143: 0000065
A144: Всего в Полдник 2 | B144: =SUM(B140:B143) -> 500 | C144: =SUM(C140:C143) -> 16 | D144: =SUM(D140:D143) -> 12.6 | E144: =SUM(E140:E143) -> 60 | F144: =SUM(F140:F143) -> 471
A145: Всего в день | B145: =B138+B144 -> 1205 | C145: =C138+C144 -> 41.56 | D145: 34.82 | E145: 159.68 | F145: 1178
D146: 2-ая неделя/Среда
A147: Прием пищи, наименование блюда | B147: Вес блюда | C147: Пищевые вещества (г) | F147: Энерг. ценность | G147: № рецептуры
C148: Белки | D148: Жиры | E148: Углеводы
A149: 1 | B149: 2 | C149: 3 | D149: 4 | E149: 5 | F149: 6 | G149: 7
A150: Обед 2 смена
A151: Свекольник со сметаной | B151: 200 | C151: 5 | D151: 4 | E151: 13 | F151: 105 | G151: КП24020
A152: Макароны отварные с маслом | B152: 150 | C152: 4 | D152: 6 | E152: 15.2 | F152: 200 | G152: КП24052
A153: Голень куриная запеченная с подливом из томатной пасты | B153: 90 | C153: 10 | D153: 11 | E153: 15 | F153: 115 | G153: КП24067
A154: Компот из смеси сухофруктов | B154: 200 | C154: 0.9 | D154: 0.1 | E154: 21 | F154: 132 | G154: КП24054
A155: Хлеб пшеничный витаминизированный | B155: 35 | C155: 1.93 | D155: 0.42 | E155: 11.38 | F155: 82 | G155: 0000065
A156: Хлеб ржаной витаминизированный | B156: 30 | C156: 2.43 | D156: 4.2 | E156: 11 | F156: 71 | G156: ШК00129
A157: Всего в Обед 2 | B157: =SUM(B151:B156) -> 705 | C157: =SUM(C151:C156) -> 24.26 | D157: 25.72 | E157: 86.58 | F157: 705
A158: Полдник 2 смена
A159: Каша рисовая молочная | B159: 170 | C159: 6.6 | D159: 9.2 | E159: 20 | F159: 266 | G159: КП24053
A160: Сырники "Сюрприз" | B160: 90 | C160: 6.9 | D160: 6 | E160: 18 | F160: 110 | G160: КП24006
A161: Чай с лимоном и сахаром | B161: 200 | C161: 0.3 | D161: 0.3 | E161: 1 | F161: 65 | G161: КП24047
A162: Хлеб пшеничный витаминизированный | B162: 40 | C162: 2.2 | D162: 0.48 | E162: 13 | F162: 94 | G162: 0000065
A163: Всего в Полдник 2 | B163: =SUM(B159:B162) -> 500 | C163: =SUM(C159:C162) -> 16 | D163: =SUM(D159:D162) -> 15.98 | E163: =SUM(E159:E162) -> 52 | F163: =SUM(F159:F162) -> 535
A164: Всего в день | B164: =B157+B163 -> 1205 | C164: =C157+C163 -> 40.26 | D164: 41.7 | E164: 138.58 | F164: 1240
D165: 2-ая неделя/Четверг
A166: Прием пищи, наименование блюда | B166: Вес блюда | C166: Пищевые вещества (г) | F166: Энерг. ценность | G166: № рецептуры
C167: Белки | D167: Жиры | E167: Углеводы
A168: 1 | B168: 2 | C168: 3 | D168: 4 | E168: 5 | F168: 6 | G168: 7
A169: Обед 2 смена
A170: Салат из белокачанной капусты | B170: 90 | C170: 1.6 | D170: 1.8 | E170: 6.9 | F170: 49.5 | G170: КП24063
A171: Суп-лапша домашняя | B171: 200 | C171: 2.4 | D171: 4.8 | E171: 11.8 | F171: 95.6 | G171: КП24016
A172: Каша гречневая рассыпчатая с овощами и куриным фаршем | B172: 150 | C172: 11.5 | D172: 10 | E172: 40 | F172: 450 | G172: КП24035
A173: Чай с сахаром | B173: 200 | C173: 0.2 | D173: 0 | E173: 6.5 | F173: 27 | G173: КП24045
A174: Хлеб пшеничный витаминизированный | B174: 35 | C174: 1.93 | D174: 0.42 | E174: 11.38 | F174: 82 | G174: 0000065
A175: Хлеб ржаной витаминизированный | B175: 30 | C175: 2.43 | D175: 4.2 | E175: 11 | F175: 71 | G175: ШК00129
A176: Всего в Обед 2 | B176: =SUM(B170:B175) -> 705 | C176: =SUM(C170:C175) -> 20.06 | D176: 21.22 | E176: 87.58 | F176: 775.1
A177: Полдник 2 смена
A178: Борщ со сметаной на курином бульоне | B178: 230 | C178: 9 | D178: 8 | E178: 21 | F178: 103 | G178: КП24029
A179: Какао с молоком | B179: 200 | C179: 3.1 | D179: 4 | E179: 16 | F179: 180 | G179: КП24044
A180: Хлеб пшеничный витаминизированный | B180: 40 | C180: 2.2 | D180: 0.48 | E180: 13 | F180: 94 | G180: 0000065
A181: Кекс для детского питания | B181: 32 | C181: 1 | D181: 1.2 | E181: 9 | F181: 98 | G181: КП24059
A182: Всего в Полдник 2 | B182: =SUM(B178:B181) -> 502 | C182: =SUM(C178:C181) -> 15.3 | D182: =SUM(D178:D181) -> 13.68 | E182: =SUM(E178:E181) -> 59 | F182: =SUM(F178:F181) -> 475
A183: Всего в день | B183: =B176+B182 -> 1207 | C183: =C176+C182 -> 35.36 | D183: 34.9 | E183: 146.58 | F183: 1250.1
D184: 2-ая неделя/Пятница
A185: Прием пищи, наименование блюда | B185: Вес блюда | C185: Пищевые вещества (г) | F185: Энерг. ценность | G185: № рецептуры
C186: Белки | D186: Жиры | E186: Углеводы
A187: 1 | B187: 2 | C187: 3 | D187: 4 | E187: 5 | F187: 6 | G187: 7
A188: Обед 2 смена
A189: Салат из моркови на растительном масле (морковь,сахар) | B189: 90 | C189: 1 | D189: 4.3 | E189: 9.1 | F189: 52 | G189: КП24062
A190: Суп картофельный с бобовыми и гренками | B190: 200 | C190: 9 | D190: 5 | E190: 16 | F190: 162 | G190: КП24010
A191: Плов из говядины | B191: 150 | C191: 10 | D191: 11 | E191: 28 | F191: 324 | G191: КП24050
A192: Компот из смеси сухофруктов | B192: 200 | C192: 0.9 | D192: 0.1 | E192: 21 | F192: 132 | G192: КП24054
A193: Хлеб пшеничный витаминизированный | B193: 35 | C193: 1.93 | D193: 0.42 | E193: 11.38 | F193: 82 | G193: 0000065
A194: Хлеб ржаной витаминизированный | B194: 30 | C194: 2.43 | D194: 4.2 | E194: 11 | F194: 71 | G194: ШК00129
A195: Всего в Обед | B195: =SUM(B189:B194) -> 705 | C195: =SUM(C189:C194) -> 25.26 | D195: 25.02 | E195: 96.48 | F195: 823
A196: Полдник 2 смена
A197: Картофельное пюре | B197: 170 | C197: 4.5 | D197: 4 | E197: 22 | F197: 180 | G197: КП24051
A198: Котлкты из говядины "Боярские" с соусом томатным | B198: 90 | C198: 9 | D198: 11 | E198: 24 | F198: 231 | G198: КП24040
A199: Чай с лимоном и сахаром | B199: 200 | C199: 0.3 | D199: 0.3 | E199: 1 | F199: 65 | G199: КП24047
A200: Хлеб пшеничный витаминизированный | B200: 40 | C200: 2.2 | D200: 0.48 | E200: 13 | F200: 94 | G200: 0000065
A201: Всего в Завтрак | B201: =SUM(B197:B200) -> 500 | C201: =SUM(C197:C200) -> 16 | D201: =SUM(D197:D200) -> 15.78 | E201: =SUM(E197:E200) -> 60 | F201: =SUM(F197:F200) -> 570
A202: Всего в день | B202: =B195+B201 -> 1205 | C202: =C195+C201 -> 41.26 | D202: 40.8 | E202: 156.48 | F202: 1393
A203: Итого: | C203: =C31+C50+C69+C88+C107+C126+C145+C164+C183+C202 -> 388.1 | D203: =D31+D50+D69+D88+D107+D126+D145+D164+D183+D202 -> 390.07 | E203: =E31+E50+E69+E88+E107+E126+E145+E164+E183+E202 -> 1484.22 | F203: =F31+F50+F69+F88+F107+F126+F145+F164+F183+F202 -> 12826.8

Sheet с 12 и старше 2 смена
A4: ПРИМЕРНОЕ МЕНЮ И ПИЩЕВАЯ ЦЕННОСТЬ
A5: ПРИГОТАВЛИВАЕМЫХ БЛЮД
A6: (2-х недельное)
A7: ='с 7 до 11 лет'!A7 -> МБОУ СОШ с.Красная Горка
A8: ='с 7 до 11 лет'!A8 -> Директор школы: Нуртдинов С.Р.
A9: ='с 7 до 11 лет'!A9 -> от 28 августа 2024 года
A10: Сезон: Осень-зима
A11: Возростная категория: Старшие классы
D12: 1-ая неделя/Понедельник
A13: Прием пищи, наименование блюда | B13: Вес блюда | C13: Пищевые вещества (г) | F13: Энерг. ценность | G13: № рецептуры
C14: Белки | D14: Жиры | E14: Углеводы
A15: 1 | B15: 2 | C15: 3 | D15: 4 | E15: 5 | F15: 6 | G15: 7
A16: Обед 2 смена
A17: Щи из свежей капусты с картофелем со сметаной | B17: 250 | C17: 2 | D17: 5 | E17: 10 | F17: 98 | G17: КП24021
A18: Каша гречневая рассыпчатая | B18: 180 | C18: 6 | D18: 5.4 | E18: 30 | F18: 210 | G18: КП24049
A19: Котлеты куриные с соусом томатным | B19: 100 | C19: 13 | D19: 10 | E19: 25 | F19: 320 | G19: КП24037
A20: Чай с сахаром | B20: 200 | C20: 0.2 | D20: 0 | E20: 6.5 | F20: 27 | G20: КП24045
A21: Хлеб пшеничный | B21: 45 | C21: 2.48 | D21: 0.54 | E21: 14.63 | F21: 105 | G21: 0000065
A22: Хлеб ржаной | B22: 40 | C22: 3.24 | D22: 5.6 | E22: 14.67 | F22: 95 | G22: ШК00129
A23: Всего в Обед 2 | B23: =SUM(B17:B22) -> 815 | C23: =SUM(C17:C22) -> 26.92 | D23: 26.54 | E23: 100.8 | F23: 855
A24: Полдник 2 смена
A25: Макароны отварные с томатным соусом | B25: 200 | C25: 9.6 | D25: 11.2 | E25: 37.95 | F25: 291 | G25: КП24030
A26: Какао с молоком | B26: 200 | C26: 3.1 | D26: 4 | E26: 16 | F26: 180 | G26: КП24044
A27: Хлеб пшеничный | B27: 50 | C27: 2.75 | D27: 0.6 | E27: 16.25 | F27: 117 | G27: 0000065
A28: Сыр порционный | B28: 12 | C28: 2.8 | D28: 3.5 | E28: 0 | F28: 44 | G28: КП24060
A29: Фрукты свеж.(шт.) | B29: 100 | C29: 0.4 | D29: 0.4 | E29: 9.8 | F29: 47 | G29: КП24061
A30: Всего в Полдник 2 | B30: =SUM(B25:B29) -> 562 | C30: =SUM(C25:C29) -> 18.65 | D30: 19.7 | E30: 80 | F30: 679
A31: Всего в день | B31: =B23+B30 -> 1377 | C31: =C23+C30 -> 45.57 | D31: 46.24 | E31: 180.8 | F31: 1534
D32: 1-ая неделя/Вторник
A33: Прием пищи, наименование блюда | B33: Вес блюда | C33: Пищевые вещества (г) | F33: Энерг. ценность | G33: № рецептуры
C34: Белки | D34: Жиры | E34: Углеводы
A35: 1 | B35: 2 | C35: 3 | D35: 4 | E35: 5 | F35: 6 | G35: 7
A36: Обед 2 смена
A37: Суп картофельный с вермишелью | B37: 250 | C37: 9 | D37: 3 | E37: 16 | F37: 114 | G37: КП24012
A38: Солянка из сборных овощей | B38: 180 | C38: 1.2 | D38: 0.5 | E38: 6.7 | F38: 110 | G38: КП24064
A39: Котлеты из говядины "Боярские" с соусом томатным | B39: 100 | C39: 10 | D39: 16 | E39: 28 | F39: 267 | G39: КП24041
A40: Компот из смеси сухофруктов | B40: 200 | C40: 0.9 | D40: 0.1 | E40: 21 | F40: 132 | G40: КП24054
A41: Хлеб пшеничный | B41: 45 | C41: 2.48 | D41: 0.54 | E41: 14.63 | F41: 105 | G41: 0000065
A42: Хлеб ржаной | B42: 40 | C42: 3.24 | D42: 5.6 | E42: 14.67 | F42: 95 | G42: ШК00129
A43: Всего в Обед 2 | B43: =SUM(B37:B42) -> 815 | C43: =SUM(C37:C42) -> 26.82 | D43: 25.74 | E43: 101 | F43: 823
A44: Полдник 2 смена
A45: Каша "Дружба" молочная | B45: 210 | C45: 11 | D45: 8.6 | E45: 38 | F45: 240 | G45: КП24048
A46: Сырники из творога с соусом молочным | B46: 90 | C46: 5.4 | D46: 9 | E46: 13.5 | F46: 120 | G46: КП24057
A47: Чай с сахаром | B47: 200 | C47: 0.2 | D47: 0 | E47: 6.5 | F47: 27 | G47: КП24045
A48: Хлеб пшеничный | B48: 50 | C48: 2.75 | D48: 0.6 | E48: 16.25 | F48: 117 | G48: 0000065
A49: Всего в Полдник 2 | B49: =SUM(B45:B48) -> 550 | C49: =SUM(C45:C48) -> 19.35 | D49: =SUM(D45:D48) -> 18.2 | E49: =SUM(E45:E48) -> 74.25 | F49: =SUM(F45:F48) -> 504
A50: Всего в день | B50: =B43+B49 -> 1365 | C50: =C43+C49 -> 46.17 | D50: 43.94 | E50: 175.25 | F50: 1327
D51: 1-ая неделя/Среда
A52: Прием пищи, наименование блюда | B52: Вес блюда | C52: Пищевые вещества (г) | F52: Энерг. ценность | G52: № рецептуры
C53: Белки | D53: Жиры | E53: Углеводы
A54: 1 | B54: 2 | C54: 3 | D54: 4 | E54: 5 | F54: 6 | G54: 7
A55: Обед 2 смена
A56: Салат из белокачанной капусты | B56: 100 | C56: 2.1 | D56: 2.2 | E56: 5.6 | F56: 38 | G56: КП24063
A57: Рассольник лениградский с крупой перловой со сметаной | B57: 250 | C57: 10 | D57: 11 | E57: 7 | F57: 189 | G57: КП24022
A58: Картофель и овощи, тушенные в соусе с куриным фаршем | B58: 190 | C58: 7 | D58: 6 | E58: 29 | F58: 280 | G58: КП24034
A59: Компот яблочный | B59: 200 | C59: 1.6 | D59: 0 | E59: 29 | F59: 111 | G59: КП24055
A60: Хлеб пшеничный | B60: 45 | C60: 2.48 | D60: 0.54 | E60: 14.63 | F60: 105 | G60: 0000065
A61: Хлеб ржаной | B61: 40 | C61: 3.24 | D61: 5.6 | E61: 14.67 | F61: 95 | G61: ШК00129
A62: Всего в Обед 2 | B62: =SUM(B56:B61) -> 825 | C62: =SUM(C56:C61) -> 26.42 | D62: 25.34 | E62: 99.9 | F62: 818
A63: Полдник 2 смена
A64: Каша гречневая рассыпчатая | B64: 200 | C64: 7 | D64: 7.1 | E64: 32.4 | F64: 254 | G64: КП24049
A65: Голубцы ленивые "Детские" под соусом томатным | B65: 100 | C65: 9 | D65: 11 | E65: 11.72 | F65: 171 | G65: КП24009
A66: Чай с сахаром | B66: 200 | C66: 0.2 | D66: 0 | E66: 6.5 | F66: 27 | G66: КП24045
A67: Хлеб пшеничный | B67: 50 | C67: 2.75 | D67: 0.6 | E67: 16.25 | F67: 117 | G67: 0000065
A68: Всего в Полдник 2 | B68: =SUM(B64:B67) -> 550 | C68: =SUM(C64:C67) -> 18.95 | D68: =SUM(D64:D67) -> 18.7 | E68: =SUM(E64:E67) -> 66.87 | F68: =SUM(F64:F67) -> 569
A69: Всего в день | B69: =B62+B68 -> 1375 | C69: =C62+C68 -> 45.37 | D69: 44.04 | E69: 166.77 | F69: 1387
D70: 1-ая неделя /Четверг
A71: Прием пищи, наименование блюда | B71: Вес блюда | C71: Пищевые вещества (г) | F71: Энерг. ценность | G71: № рецептуры
C72: Белки | D72: Жиры | E72: Углеводы
A73: 1 | B73: 2 | C73: 3 | D73: 4 | E73: 5 | F73: 6 | G73: 7
A74: Обед 2 смена
A75: Суп с фасолью на овощном бульоне | B75: 250 | C75: 8 | D75: 7 | E75: 18 | F75: 335 | G75: КП24013
A76: Макароны отварные с маслом | B76: 180 | C76: 6 | D76: 5.5 | E76: 30 | F76: 227 | G76: КП24052
A77: Котлеты куриные "Наггетсы" с подливом овощным | B77: 100 | C77: 7 | D77: 8 | E77: 18 | F77: 146 | G77: КП24039
A78: Компот из свежих плодов (яблоко,лимон) | B78: 200 | C78: 0.2 | D78: 0.2 | E78: 12 | F78: 50 | G78: КП24056
A79: Хлеб пшеничный | B79: 45 | C79: 2.48 | D79: 0.54 | E79: 14.63 | F79: 105 | G79: 0000065
A80: Хлеб ржаной | B80: 40 | C80: 3.24 | D80: 5.6 | E80: 14.67 | F80: 95 | G80: ШК00129
A81: Всего в Обед 2 | B81: =SUM(B75:B80) -> 815 | C81: =SUM(C75:C80) -> 26.92 | D81: 26.84 | E81: 107.3 | F81: 958
A82: Полдник 2 смена
A83: Плов из говядины | B83: 200 | C83: 12.9 | D83: 14 | E83: 41 | F83: 339 | G83: КП24050
A84: Чай с сахаром | B84: 200 | C84: 0.2 | D84: 0 | E84: 6.5 | F84: 27 | G84: КП24045
A85: Хлеб пшеничный | B85: 50 | C85: 2.75 | D85: 0.6 | E85: 16.25 | F85: 117 | G85: 0000065
A86: Йогурт | B86: 100 | C86: 3.3 | D86: 3 | E86: 6.4 | F86: 71 | G86: КП24058
A87: Всего в Полдник 2 | B87: =SUM(B83:B86) -> 550 | C87: =SUM(C83:C86) -> 19.15 | D87: =SUM(D83:D86) -> 17.6 | E87: =SUM(E83:E86) -> 70.15 | F87: =SUM(F83:F86) -> 554
A88: Всего в день | B88: =B81+B87 -> 1365 | C88: =C81+C87 -> 46.07 | D88: 44.44 | E88: 177.45 | F88: 1512
D89: 1-ая неделя/Пятница
A90: Прием пищи, наименование блюда | B90: Вес блюда | C90: Пищевые вещества (г) | F90: Энерг. ценность | G90: № рецептуры
C91: Белки | D91: Жиры | E91: Углеводы
A92: 1 | B92: 2 | C92: 3 | D92: 4 | E92: 5 | F92: 6 | G92: 7
A93: Обед 2 смена
A94: Суп крестьянский с крупой (пшено) со сметаной | B94: 250 | C94: 5.6 | D94: 4 | E94: 14 | F94: 186 | G94: КП24023
A95: Каша гречневая рассыпчатая | B95: 180 | C95: 5.8 | D95: 5.4 | E95: 27 | F95: 180 | G95: КП24049
A96: Голубцы ленивые "Детские" под соусом томатным | B96: 100 | C96: 8 | D96: 10.3 | E96: 15 | F96: 175 | G96: КП24009
A97: Компот из смеси сухофруктов | B97: 200 | C97: 0.9 | D97: 0.1 | E97: 21 | F97: 132 | G97: КП24054
A98: Хлеб пшеничный | B98: 45 | C98: 2.48 | D98: 0.54 | E98: 14.63 | F98: 105 | G98: 0000065
A99: Хлеб ржаной | B99: 40 | C99: 3.24 | D99: 5.6 | E99: 14.67 | F99: 95 | G99: ШК00129
A100: Всего в Обед 2 | B100: =SUM(B94:B99) -> 815 | C100: =SUM(C94:C99) -> 26.02 | D100: 25.94 | E100: 106.3 | F100: 873
A101: Полдник 2 смена
A102: Картофельное пюре | B102: 200 | C102: 5.5 | D102: 4.2 | E102: 24 | F102: 167 | G102: КП24051
A103: Биточки рыбные с соусом томатным | B103: 100 | C103: 8.7 | D103: 12 | E103: 24 | F103: 189 | G103: КП24036
A104: Чай витаминизированный "Витошка" | B104: 200 | C104: 1 | D104: 0 | E104: 2 | F104: 54 | G104: КП24046
A105: Хлеб пшеничный | B105: 50 | C105: 2.75 | D105: 0.6 | E105: 16.25 | F105: 117 | G105: 0000065
A106: Всего в Полдник 2 | B106: =SUM(B102:B105) -> 550 | C106: =SUM(C102:C105) -> 17.95 | D106: =SUM(D102:D105) -> 16.8 | E106: =SUM(E102:E105) -> 66.25 | F106: =SUM(F102:F105) -> 527
A107: Всего в день | B107: =B100+B106 -> 1365 | C107: =C100+C106 -> 43.97 | D107: 42.74 | E107: 172.55 | F107: 1400
D108: 2-ая неделя/Понедельник
A109: Прием пищи, наименование блюда | B109: Вес блюда | C109: Пищевые вещества (г) | F109: Энерг. ценность | G109: № рецептуры
C110: Белки | D110: Жиры | E110: Углеводы
A111: 1 | B111: 2 | C111: 3 | D111: 4 | E111: 5 | F111: 6 | G111: 7
A112: Обед 2 смена
A113: Щи из свежей капусты с картофелем со сметаной | B113: 250 | C113: 7.4 | D113: 4.6 | E113: 30 | F113: 168 | G113: КП24021
A114: Плов из говядины | B114: 180 | C114: 11 | D114: 14 | E114: 35 | F114: 398 | G114: КП24050
A115: Чай с сахаром | B115: 200 | C115: 0.2 | D115: 0 | E115: 6.5 | F115: 27 | G115: КП24045
A116: Хлеб пшеничный | B116: 45 | C116: 2.48 | D116: 0.54 | E116: 14.63 | F116: 105 | G116: 0000065
A117: Хлеб ржаной | B117: 40 | C117: 3.24 | D117: 5.6 | E117: 14.67 | F117: 95 | G117: ШК00129
A118: Фрукты свеж.(шт.) | B118: 100 | C118: 0.4 | D118: 0.4 | E118: 9.8 | F118: 47 | G118: КП24061
A119: Всего в Обед 2 | B119: =SUM(B113:B118) -> 815 | C119: =SUM(C113:C118) -> 24.72 | D119: =SUM(D113:D118) -> 25.14 | E119: =SUM(E113:E118) -> 110.6 | F119: =SUM(F113:F118) -> 840
A120: Полдник 2 смена
A121: Макароны отварные с маслом | B121: 200 | C121: 5.7 | D121: 7 | E121: 18 | F121: 234 | G121: КП24052
A122: Котлеты куриные "Наггетсы" с подливом овощным | B122: 100 | C122: 7 | D122: 8 | E122: 18 | F122: 146 | G122: КП24039
A123: Какао с молоком | B123: 200 | C123: 3.1 | D123: 4 | E123: 16 | F123: 180 | G123: КП24044
A124: Хлеб пшеничный | B124: 50 | C124: 2.75 | D124: 0.6 | E124: 16.25 | F124: 117 | G124: 0000065
A125: Всего в Полдник 2 | B125: =SUM(B121:B124) -> 550 | C125: =SUM(C121:C124) -> 18.55 | D125: =SUM(D121:D124) -> 19.6 | E125: =SUM(E121:E124) -> 68.25 | F125: =SUM(F121:F124) -> 677
A126: Всего в день | B126: =B119+B125 -> 1365 | C126: =C119+C125 -> 43.27 | D126: 44.74 | E126: 178.85 | F126: 1517
D127: 2-ая неделя/Вторник
A128: Прием пищи, наименование блюда | B128: Вес блюда | C128: Пищевые вещества (г) | F128: Энерг. ценность | G128: № рецептуры
C129: Белки | D129: Жиры | E129: Углеводы
A130: 1 | B130: 2 | C130: 3 | D130: 4 | E130: 5 | F130: 6 | G130: 7
A131: Обед 2 смена
A132: Суп картофельный с вермишелью | B132: 250 | C132: 8 | D132: 4 | E132: 17 | F132: 125 | G132: КП24012
A133: Картофельное пюре | B133: 180 | C133: 3.9 | D133: 4.2 | E133: 12.3 | F133: 176 | G133: КП24051
A134: Биточки рыбные с соусом томатным | B134: 100 | C134: 7.7 | D134: 10 | E134: 24 | F134: 210 | G134: КП24036
A135: Компот яблочный | B135: 200 | C135: 1.6 | D135: 0 | E135: 29 | F135: 111 | G135: КП24055
A136: Хлеб пшеничный | B136: 45 | C136: 2.48 | D136: 0.54 | E136: 14.63 | F136: 105 | G136: 0000065
A137: Хлеб ржаной | B137: 40 | C137: 3.24 | D137: 5.6 | E137: 14.67 | F137: 95 | G137: ШК00129
A138: Всего в Обед 2 | B138: =SUM(B132:B137) -> 815 | C138: =SUM(C132:C137) -> 26.92 | D138: 24.34 | E138: 111.6 | F138: 822
A139: Полдник 2 смена
A140: Каша гречневая рассыпчатая | B140: 200 | C140: 7.7 | D140: 7.6 | E140: 35 | F140: 251 | G140: КП24049
A141: Котлеты из говядины "Люля-Кебаб" с соусом томатным | B141: 100 | C141: 8 | D141: 10 | E141: 11 | F141: 168 | G141: КП24042
A142: Чай с сахаром | B142: 200 | C142: 0.2 | D142: 0 | E142: 6.5 | F142: 27 | G142: КП24045
A143: Хлеб пшеничный | B143: 50 | C143: 2.75 | D143: 0.6 | E143: 16.25 | F143: 117 | G143: 0000065
A144: Всего в Полдник 2 | B144: =SUM(B140:B143) -> 550 | C144: =SUM(C140:C143) -> 18.65 | D144: =SUM(D140:D143) -> 18.2 | E144: =SUM(E140:E143) -> 68.75 | F144: =SUM(F140:F143) -> 563
A145: Всего в день | B145: =B138+B144 -> 1365 | C145: =C138+C144 -> 45.57 | D145: 42.54 | E145: 180.35 | F145: 1385
D146: 2-ая неделя/Среда
A147: Прием пищи, наименование блюда | B147: Вес блюда | C147: Пищевые вещества (г) | F147: Энерг. ценность | G147: № рецептуры
C148: Белки | D148: Жиры | E148: Углеводы
A149: 1 | B149: 2 | C149: 3 | D149: 4 | E149: 5 | F149: 6 | G149: 7
A150: Обед 2 смена
A151: Свекольник со сметаной | B151: 250 | C151: 5 | D151: 4 | E151: 13 | F151: 105 | G151: КП24020
A152: Макароны отварные с маслом | B152: 180 | C152: 5 | D152: 6 | E152: 28 | F152: 200 | G152: КП24052
A153: Голень куриная запеченная с подливом из томатной пасты | B153: 100 | C153: 10.2 | D153: 10.7 | E153: 15 | F153: 115 | G153: КП24066
A154: Компот из смеси сухофруктов | B154: 200 | C154: 0.9 | D154: 0.1 | E154: 21 | F154: 132 | G154: КП24054
A155: Хлеб пшеничный | B155: 45 | C155: 2.48 | D155: 0.54 | E155: 14.63 | F155: 105 | G155: 0000065
A156: Хлеб ржаной | B156: 40 | C156: 3.24 | D156: 5.6 | E156: 14.67 | F156: 95 | G156: ШК00129
A157: Всего в Обед 2 | B157: =SUM(B151:B156) -> 815 | C157: =SUM(C151:C156) -> 26.82 | D157: 26.94 | E157: 106.3 | F157: 752
A158: Полдник 2 смена
A159: Каша рисовая молочная | B159: 210 | C159: 8.3 | D159: 10.4 | E159: 34 | F159: 320 | G159: КП24053
A160: Сырники "Сюрприз" | B160: 90 | C160: 6.9 | D160: 6 | E160: 18 | F160: 110 | G160: КП24006
A161: Чай с лимоном и сахаром | B161: 200 | C161: 0.3 | D161: 0.3 | E161: 1 | F161: 65 | G161: КП24047
A162: Хлеб пшеничный | B162: 50 | C162: 2.75 | D162: 0.6 | E162: 16.25 | F162: 117 | G162: 0000065
A163: Всего в Полдник 2 | B163: =SUM(B159:B162) -> 550 | C163: =SUM(C159:C162) -> 18.25 | D163: =SUM(D159:D162) -> 17.3 | E163: =SUM(E159:E162) -> 69.25 | F163: =SUM(F159:F162) -> 612
A164: Всего в день | B164: =B157+B163 -> 1365 | C164: =C157+C163 -> 45.07 | D164: 44.24 | E164: 175.55 | F164: 1364
D165: 2-ая неделя/Четверг
A166: Прием пищи, наименование блюда | B166: Вес блюда | C166: Пищевые вещества (г) | F166: Энерг. ценность | G166: № рецептуры
C167: Белки | D167: Жиры | E167: Углеводы
A168: 1 | B168: 2 | C168: 3 | D168: 4 | E168: 5 | F168: 6 | G168: 7
A169: Обед 2 смена
A170: Салат из белокачанной капусты | B170: 100 | C170: 1.8 | D170: 2.1 | E170: 7.2 | F170: 52 | G170: КП24063
A171: Суп-лапша домашняя | B171: 250 | C171: 4 | D171: 5.8 | E171: 19 | F171: 107 | G171: КП24016
A172: Каша гречневая рассыпчатая с овощами и куриным фаршем | B172: 180 | C172: 11.5 | D172: 10 | E172: 40 | F172: 450 | G172: КП24035
A173: Чай с сахаром | B173: 200 | C173: 0.2 | D173: 0 | E173: 6.5 | F173: 27 | G173: КП24045
A174: Хлеб пшеничный | B174: 45 | C174: 2.48 | D174: 0.54 | E174: 14.63 | F174: 105 | G174: 0000065
A175: Хлеб ржаной | B175: 40 | C175: 3.24 | D175: 5.6 | E175: 14.67 | F175: 95 | G175: ШК00129
A176: Всего в Обед 2 | B176: =SUM(B170:B175) -> 815 | C176: =SUM(C170:C175) -> 23.22 | D176: 24.04 | E176: 102 | F176: 836
A177: Полдник 2 смена
A178: Борщ со сметаной на курином бульоне | B178: 280 | C178: 11 | D178: 12 | E178: 30 | F178: 158 | G178: КП24065
A179: Какао с молоком | B179: 200 | C179: 3.1 | D179: 4 | E179: 16 | F179: 180 | G179: КП24044
A180: Хлеб пшеничный | B180: 50 | C180: 2.75 | D180: 0.6 | E180: 16.25 | F180: 117 | G180: 0000065
A181: Кекс для детского питания | B181: 32 | C181: 1 | D181: 1.2 | E181: 9 | F181: 98 | G181: КП24059
A182: Всего в Полдник 2 | B182: =SUM(B178:B181) -> 562 | C182: =SUM(C178:C181) -> 17.85 | D182: =SUM(D178:D181) -> 17.8 | E182: =SUM(E178:E181) -> 71.25 | F182: =SUM(F178:F181) -> 553
A183: Всего в день | B183: =B176+B182 -> 1377 | C183: =C176+C182 -> 41.07 | D183: 41.84 | E183: 173.25 | F183: 1389
D184: 2-ая неделя/Пятница
A185: Прием пищи, наименование блюда | B185: Вес блюда | C185: Пищевые вещества (г) | F185: Энерг. ценность | G185: № рецептуры
C186: Белки | D186: Жиры | E186: Углеводы
A187: 1 | B187: 2 | C187: 3 | D187: 4 | E187: 5 | F187: 6 | G187: 7
A188: Обед 2 смена
A189: Салат из моркови на растительном масле (морковь,сахар) | B189: 100 | C189: 2 | D189: 4.5 | E189: 10 | F189: 110 | G189: КП24062
A190: Суп картофельный с бобовыми и гренками | B190: 250 | C190: 10 | D190: 5 | E190: 16 | F190: 162 | G190: КП24024
A191: Плов из говядины | B191: 180 | C191: 6.66 | D191: 11.25 | E191: 30 | F191: 281 | G191: КП24050
A192: Компот из смеси сухофруктов | B192: 200 | C192: 0.9 | D192: 0.1 | E192: 21 | F192: 132 | G192: КП24054
A193: Хлеб пшеничный | B193: 45 | C193: 2.48 | D193: 0.54 | E193: 14.63 | F193: 105 | G193: 0000065
A194: Хлеб ржаной | B194: 40 | C194: 3.24 | D194: 5.6 | E194: 14.67 | F194: 95 | G194: ШК00129
A195: Всего в Обед 2 | B195: =SUM(B189:B194) -> 815 | C195: =SUM(C189:C194) -> 25.28 | D195: 26.99 | E195: 106.3 | F195: 885
A196: Полдник 2 смена
A197: Картофельное пюре | B197: 200 | C197: 6 | D197: 5 | E197: 24 | F197: 167 | G197: КП24051
A198: Котлкты из говядины "Боярские" с соусом томатным | B198: 100 | C198: 10 | D198: 14 | E198: 35 | F198: 254 | G198: КП24041
A199: Чай с лимоном и сахаром | B199: 200 | C199: 0.3 | D199: 0.3 | E199: 1 | F199: 65 | G199: КП24047
A200: Хлеб пшеничный | B200: 50 | C200: 2.75 | D200: 0.6 | E200: 16.25 | F200: 117 | G200: 0000065
A201: Всего в Полдник 2 | B201: =SUM(B197:B200) -> 550 | C201: =SUM(C197:C200) -> 19.05 | D201: =SUM(D197:D200) -> 19.9 | E201: =SUM(E197:E200) -> 76.25 | F201: =SUM(F197:F200) -> 603
A202: Всего в день | B202: =B195+B201 -> 1365 | C202: =C195+C201 -> 44.33 | D202: 46.89 | E202: 182.55 | F202: 1488
A203: Итого: | C203: =C31+C50+C69+C88+C107+C126+C145+C164+C183+C202 -> 446.46 | D203: =D31+D50+D69+D88+D107+D126+D145+D164+D183+D202 -> 441.65 | E203: =E31+E50+E69+E88+E107+E126+E145+E164+E183+E202 -> 1763.37 | F203: =F31+F50+F69+F88+F107+F126+F145+F164+F183+F202 -> 14303
